Body Name,Body,Service Level,Expense Type,Expense Code,Narrative,Date,Transaction Number,Amount,Capital and Revenue,Supplier Name,Supplier ID
South Ribble Borough Council,http://statistics.data.gov.uk/id/local-authority/30UE,Democratic Represent and  Mgnt,Corp Subs to Professional Bodies,4720,MEMBERSHIP SUBSCRIPTION RENEWAL FOR 2021/2022,27/10/2021,0000472709,"1,500.00",Revenue,ACTIVE LANCASHIRE,0
South Ribble Borough Council,http://statistics.data.gov.uk/id/local-authority/30UE,Open Spaces,External Contractors Charges,4570,Flail mow grass to all South Ribble meadow areas marked up on the supplied maps.,13/10/2021,0000472456,"7,450.00",Revenue,Adam Lowe - Agricultural Landscaping,0
South Ribble Borough Council,http://statistics.data.gov.uk/id/local-authority/30UE,Open Spaces,External Contractors Charges,4570,"Mowing and Collecting off the meadow at the Pencon site, Penwortham. A gate has now been installed onto this site by our landscape team.",13/10/2021,0000472463,"3,750.00",Revenue,Adam Lowe - Agricultural Landscaping,0
South Ribble Borough Council,http://statistics.data.gov.uk/id/local-authority/30UE,Capital,Cap Contract Payment,C230,To supply and fit 4 No. zip hydroboil water heaters to the Civic Centre as per your quotation,20/10/2021,0000472406,"3,300.00",Revenue,Ainscoe Plumbing & Heating Ltd,0
South Ribble Borough Council,http://statistics.data.gov.uk/id/local-authority/30UE,Central Support Services,Reactive Repair & Maintenance,2020,To alter pipework and supply & fit a new infrared fill valve for the ground floor urinal cistern at Moss Side Depot,29/10/2021,0000472651,380.00,Revenue,Ainscoe Plumbing & Heating Ltd,0
South Ribble Borough Council,http://statistics.data.gov.uk/id/local-authority/30UE,Central Support Services,External Contractors Charges,4570,Spec repair YD19 AUM JFC17356,27/10/2021,0000472484,336.25,Revenue,Alan Edwards (Edwards Technical),0
South Ribble Borough Council,http://statistics.data.gov.uk/id/local-authority/30UE,Local Tax Collection,Bank Charges,4811,post off,13/10/2021,0000472343,639.40,Revenue,ALLPAY LTD,0
South Ribble Borough Council,http://statistics.data.gov.uk/id/local-authority/30UE,Local Tax Collection,Bank Charges,4811,paypoint,13/10/2021,0000472343,79.24,Revenue,ALLPAY LTD,0
South Ribble Borough Council,http://statistics.data.gov.uk/id/local-authority/30UE,Local Tax Collection,Bank Charges,4811,webcon,13/10/2021,0000472343,46.00,Revenue,ALLPAY LTD,0
South Ribble Borough Council,http://statistics.data.gov.uk/id/local-authority/30UE,Recreation & Sport,Water Charges(Metered),2511,07/08/21 - 06/09/21,20/10/2021,0000472204,477.03,Revenue,Anglian Water Business (National) t/as Wave Utilit,0
South Ribble Borough Council,http://statistics.data.gov.uk/id/local-authority/30UE,Recreation & Sport,Water Charges(Metered),2511,07/08/21 - 06/09/21,20/10/2021,0000472205,269.44,Revenue,Anglian Water Business (National) t/as Wave Utilit,0
South Ribble Borough Council,http://statistics.data.gov.uk/id/local-authority/30UE,Recreation & Sport,Water Charges(Metered),2511,7/8 to 15/10/21,13/10/2021,0000472206,"1,346.77",Revenue,Anglian Water Business (National) t/as Wave Utilit,0
South Ribble Borough Council,http://statistics.data.gov.uk/id/local-authority/30UE,Recreation & Sport,Water Charges(Metered),2511,7/8 to 6/9/21,13/10/2021,0000472207,693.93,Revenue,Anglian Water Business (National) t/as Wave Utilit,0
South Ribble Borough Council,http://statistics.data.gov.uk/id/local-authority/30UE,Recreation & Sport,Planned Annual Repair & Maintenance,2021,"Maintenance of the hoist including LOLER for Leyland, Bamber Bridge & Penwortham Leisure Centres",13/10/2021,0000471924,311.00,Revenue,Arjo UK Ltd,0
South Ribble Borough Council,http://statistics.data.gov.uk/id/local-authority/30UE,Recreation & Sport,Planned Annual Repair & Maintenance,2021,"Maintenance of the hoist including LOLER for Leyland, Bamber Bridge & Penwortham Leisure Centres",13/10/2021,0000472116,311.00,Revenue,Arjo UK Ltd,0
South Ribble Borough Council,http://statistics.data.gov.uk/id/local-authority/30UE,Capital,Cap Contract Payment,C230,"Final payment for the work at Station road, to convert 9 flats and associated works",20/10/2021,0000472518,"78,834.25",Revenue,ASH BARN CONSTRUCTION LTD,0
South Ribble Borough Council,http://statistics.data.gov.uk/id/local-authority/30UE,Capital,Cap Contract Payment,C230,extra works,20/10/2021,0000472518,"6,796.00",Revenue,ASH BARN CONSTRUCTION LTD,0
South Ribble Borough Council,http://statistics.data.gov.uk/id/local-authority/30UE,Capital,Cap Contract Payment,C230,elec rate agreed,20/10/2021,0000472518,-553.59,Revenue,ASH BARN CONSTRUCTION LTD,0
South Ribble Borough Council,http://statistics.data.gov.uk/id/local-authority/30UE,Capital,Cap Contract Payment,C230,water rate as agreed,20/10/2021,0000472518,-75.05,Revenue,ASH BARN CONSTRUCTION LTD,0
South Ribble Borough Council,http://statistics.data.gov.uk/id/local-authority/30UE,Capital,Cap Contract Payment,C230,waste water as agreed,20/10/2021,0000472518,-45.00,Revenue,ASH BARN CONSTRUCTION LTD,0
South Ribble Borough Council,http://statistics.data.gov.uk/id/local-authority/30UE,Capital,Cap Contract Payment,C230,boiler discount,20/10/2021,0000472518,"-10,000.00",Revenue,ASH BARN CONSTRUCTION LTD,0
South Ribble Borough Council,http://statistics.data.gov.uk/id/local-authority/30UE,Open Spaces,GM Refurbishment,4657,Plants for the Coach House Wildlife Garden at Hurst Grange Park,06/10/2021,0000471792,"2,894.50",Revenue,BANNISTER HALL LANDSCAPE SUPPLIES,0
South Ribble Borough Council,http://statistics.data.gov.uk/id/local-authority/30UE,Open Spaces,GM Refurbishment,4657,Rosmarinus officinalis,06/10/2021,0000471792,9.00,Revenue,BANNISTER HALL LANDSCAPE SUPPLIES,0
South Ribble Borough Council,http://statistics.data.gov.uk/id/local-authority/30UE,Surplus or Deficit on Trading,Reactive Repair & Maintenance,2020,"100lit of RAL6005 is 1503.50, satin finish before VAT. As per NAME REDACTED request",06/10/2021,0000472171,"1,503.50",Revenue,BROMBOROUGH PAINTS,0
South Ribble Borough Council,http://statistics.data.gov.uk/id/local-authority/30UE,Central Support Services,Materials General,4040,HANSON FAST SET POST MIX 20kg 02110336,29/10/2021,0000472574,304.80,Revenue,C & W BERRY LTD,0
South Ribble Borough Council,http://statistics.data.gov.uk/id/local-authority/30UE,Economic Development,Miscellaneous Expenses,4851,"1 9m x 6m Aluminium Frame Marquee, 1 Water Ballasts for 9m x 6m, 1 Delivery and collection for the above (25 September 2021)",06/10/2021,0000472111,840.00,Revenue,C K Marquees,0
South Ribble Borough Council,http://statistics.data.gov.uk/id/local-authority/30UE,Capital,Capital Grant,C570,"PARTIAL PAYMENT FOR BUILDING WORKS, RECTIFY ISSUES UNDER DFG AT ADDRESS REDACTED. COST FOR THIS WORK",13/10/2021,0000472451,"4,851.00",Revenue,C M CONTRACTS LTD,0
South Ribble Borough Council,http://statistics.data.gov.uk/id/local-authority/30UE,Open Spaces,GM Refurbishment,4657,41 no resolute ductile iron bollards as per quote REF E11969 including Delivery,20/10/2021,0000472495,"11,744.00",Revenue,Candela Traditional Lighting Ltd T/A Candela light,0
South Ribble Borough Council,http://statistics.data.gov.uk/id/local-authority/30UE,Central Support Services,Agency Staff,1121,Planning consultant to deal with Planning applications for the next 6 months,13/10/2021,0000472053,"6,181.50",Revenue,CAPITA PROPERTY AND INFRASTRUCTURE LTD,0
South Ribble Borough Council,http://statistics.data.gov.uk/id/local-authority/30UE,Other Welfare Services,Materials General,4040,"Debut Carpet Colour oatmeal for Lounge - Hallway,Stairs,Landing- 3 Bedrooms - with 8 mm Underlay & Workmanship",27/10/2021,0000472638,779.16,Revenue,Carpets Direct,0
South Ribble Borough Council,http://statistics.data.gov.uk/id/local-authority/30UE,Other Welfare Services,Furniture,4017,"Flooring costs, ADDRESS REDACTED",29/10/2021,0000472949,"1,477.43",Revenue,Carpets Direct,0
South Ribble Borough Council,http://statistics.data.gov.uk/id/local-authority/30UE,Central Support Services,Advertising- Recruitm Exp,1500,Part time NAME REDACTED,13/10/2021,0000472341,800.00,Revenue,CHARTERED INST OF ENVIRONMENTAL HEALTH,0
South Ribble Borough Council,http://statistics.data.gov.uk/id/local-authority/30UE,Central Support Services,Agency Staff,1121,NAME REDACTED 2020-21,27/10/2021,0000472644,"21,138.88",Revenue,CHORLEY BOROUGH COUNCIL,0
South Ribble Borough Council,http://statistics.data.gov.uk/id/local-authority/30UE,Corporate Management,Chorley Shared Services Costs Staffing,5500,Payroll cost recharges for April and May 2020/21,27/10/2021,0000472731,"68,431.57",Revenue,CHORLEY BOROUGH COUNCIL,0
South Ribble Borough Council,http://statistics.data.gov.uk/id/local-authority/30UE,Corporate Management,Chorley Shared Services Costs Staffing,5500,Final shared services recharges from Chorley Borough Council for 2021/2022,27/10/2021,0000472732,"89,020.00",Revenue,CHORLEY BOROUGH COUNCIL,0
South Ribble Borough Council,http://statistics.data.gov.uk/id/local-authority/30UE,Capital,Capital Grant,C570,PARTIAL PAYMENT FOR PLUMBING WORKS TO RECTIY ISSUES UNDER DFG AT ADDRESS REDACTED.,13/10/2021,0000472420,"1,564.00",Revenue,Chris Lingard Heating and Plumbing Ltd,0
South Ribble Borough Council,http://statistics.data.gov.uk/id/local-authority/30UE,Central Support Services,Intruder Alarm,2035,2021 / 2022 call out fees for the security system (including panic alarm) at the Civic Centre,20/10/2021,0000472499,291.77,Revenue,CHUBB LTD,0
South Ribble Borough Council,http://statistics.data.gov.uk/id/local-authority/30UE,Surplus or Deficit on Trading,Reactive Repair & Maintenance,2020,"South Ribble Museum & Exhibition Centre - the replacement of intruder alarm panel, including labour is 300 plus VAT. As Per NAME REDACTED",27/10/2021,0000472747,300.00,Revenue,CHUBB LTD,0
South Ribble Borough Council,http://statistics.data.gov.uk/id/local-authority/30UE,Central Support Services,Materials General,4040,"1 x pump, PJ62UCM, JFC17306",06/10/2021,0000472191,"1,571.40",Revenue,CICELEY COMMERCIALS LTD,0
South Ribble Borough Council,http://statistics.data.gov.uk/id/local-authority/30UE,Central Support Services,Consultancy Fees,4541,"Civica have agreed to extract up to 950,000 images covering the date utilisation periods of 01st January 2015 to 31st October 2017 (incl)",13/10/2021,0000472138,"10,000.00",Revenue,CIVICA UK LTD,0
South Ribble Borough Council,http://statistics.data.gov.uk/id/local-authority/30UE,Capital,Cap Contract Payment,C230,Please undertake remediation works at Bent Lane Leyland as agreed with SRBC Regeneration department,27/10/2021,0000472630,"35,031.94",Revenue,CLIVE HURT (PLANT HIRE) LTD,0
South Ribble Borough Council,http://statistics.data.gov.uk/id/local-authority/30UE,Central Support Services,Materials General,4040,red radar locks,13/10/2021,0000472297,300.00,Revenue,COLLINS & SONS,0
South Ribble Borough Council,http://statistics.data.gov.uk/id/local-authority/30UE,Open Spaces,Materials General,4040,radar keys,13/10/2021,0000472297,50.00,Revenue,COLLINS & SONS,0
South Ribble Borough Council,http://statistics.data.gov.uk/id/local-authority/30UE,Community Development,Professional Fees,4510,To provide holiday provision at Moss Side Community Centre 2/8/2021 to 6/8/2021,20/10/2021,0000471836,"1,932.00",Revenue,Community Network and Outreach,0
South Ribble Borough Council,http://statistics.data.gov.uk/id/local-authority/30UE,Community Development,Professional Fees,4510,To provide holiday provision at Moss Side Community Centre 9/8/2021 to 13/8/2021,20/10/2021,0000471837,"1,260.00",Revenue,Community Network and Outreach,0
South Ribble Borough Council,http://statistics.data.gov.uk/id/local-authority/30UE,Community Development,Professional Fees,4510,To provide holiday provision at Moss Side Community Centre 16-20 August 2021,20/10/2021,0000471838,"1,666.00",Revenue,Community Network and Outreach,0
South Ribble Borough Council,http://statistics.data.gov.uk/id/local-authority/30UE,Community Development,Professional Fees,4510,To provide holiday provision at Moss Side Community Centre on 23-27 August 2021,20/10/2021,0000471839,"1,582.00",Revenue,Community Network and Outreach,0
South Ribble Borough Council,http://statistics.data.gov.uk/id/local-authority/30UE,Community Development,Core Fund,4861,Reducing social isolation - parent and baby sessions,27/10/2021,0000472707,740.00,Revenue,Community Network and Outreach,0
South Ribble Borough Council,http://statistics.data.gov.uk/id/local-authority/30UE,Development Control,Professional Fees,4510,Printed and posting out of planning neighbour consultation letters for Pickering Farm site and The Windmill re-consultation,20/10/2021,0000472502,"2,954.29",Revenue,CRITIQOM,0
South Ribble Borough Council,http://statistics.data.gov.uk/id/local-authority/30UE,Local Tax Collection,Stationery General,4130,Stationery April - October 2021,27/10/2021,0000472530,344.77,Revenue,CRITIQOM,0
South Ribble Borough Council,http://statistics.data.gov.uk/id/local-authority/30UE,Local Tax Collection,Postage General,4291,Postage April - October 2021,27/10/2021,0000472602,397.99,Revenue,CRITIQOM,0
South Ribble Borough Council,http://statistics.data.gov.uk/id/local-authority/30UE,Central Support Services,Legal,4821,PROFESSIONAL SERVICES IN RELATION TO AN EMPLOYMENT TRIBUNAL MATTER,29/10/2021,0000472662,"5,750.55",Revenue,DAC BEACHCROFT LLP,0
South Ribble Borough Council,http://statistics.data.gov.uk/id/local-authority/30UE,Central Support Services,Legal,4821,PROFESSIONAL SERVICES IN RELATION TO AN EMPLOYMENT TRIBUNAL MATTER,29/10/2021,0000472694,936.00,Revenue,DAC BEACHCROFT LLP,0
South Ribble Borough Council,http://statistics.data.gov.uk/id/local-authority/30UE,Surplus or Deficit on Trading,Reactive Repair & Maintenance,2020,"Chilled Water Pump No.1 Noisy, suspect the bearings and impellers to be worn out. Complete pump replacement is required.",06/10/2021,0000472119,"7,716.50",Revenue,DAIKIN APPLIED SERVICE,0
South Ribble Borough Council,http://statistics.data.gov.uk/id/local-authority/30UE,Homelessness,Contributions to Other Bodies,4730,NAME REDACTED 4 weeks rent 24.9.21 - 22.10.21,13/10/2021,0000472426,340.00,Revenue,NAME REDACTED,0
South Ribble Borough Council,http://statistics.data.gov.uk/id/local-authority/30UE,Homelessness,Contributions to Other Bodies,4730,Accommodation - NAME REDACTED - 23.10.21 - 20.11.21,27/10/2021,0000472854,340.00,Revenue,NAME REDACTED,0
South Ribble Borough Council,http://statistics.data.gov.uk/id/local-authority/30UE,Open Spaces,Clothing and Uniforms,4410,1x TSAT4070M Breatheflex Pro Type C Trouser M,29/10/2021,0000472568,263.50,Revenue,DICK LEIGH,0
South Ribble Borough Council,http://statistics.data.gov.uk/id/local-authority/30UE,Open Spaces,Clothing and Uniforms,4410,1x DL AT3400 Kayo Size 9 Charcoal,29/10/2021,0000472568,228.00,Revenue,DICK LEIGH,0
South Ribble Borough Council,http://statistics.data.gov.uk/id/local-authority/30UE,Open Spaces,Clothing and Uniforms,4410,1x Breathedry Smock Black M Medium,29/10/2021,0000472568,120.70,Revenue,DICK LEIGH,0
South Ribble Borough Council,http://statistics.data.gov.uk/id/local-authority/30UE,Open Spaces,Clothing and Uniforms,4410,1x DL Pfanner Matterhorn Boots Size 11,29/10/2021,0000472568,310.00,Revenue,DICK LEIGH,0
South Ribble Borough Council,http://statistics.data.gov.uk/id/local-authority/30UE,Open Spaces,Clothing and Uniforms,4410,1x DLDistel Aluminim Spurs,29/10/2021,0000472568,266.65,Revenue,DICK LEIGH,0
South Ribble Borough Council,http://statistics.data.gov.uk/id/local-authority/30UE,Open Spaces,Clothing and Uniforms,4410,1x TS96E Weaver Bungee Tool Strop 1.3m,29/10/2021,0000472568,12.50,Revenue,DICK LEIGH,0
South Ribble Borough Council,http://statistics.data.gov.uk/id/local-authority/30UE,Open Spaces,Clothing and Uniforms,4410,1x TSXPHIXL Xpert Hi Sock XL 45-47,29/10/2021,0000472568,19.51,Revenue,DICK LEIGH,0
South Ribble Borough Council,http://statistics.data.gov.uk/id/local-authority/30UE,Open Spaces,Clothing and Uniforms,4410,1x TSAT4070S Breatheflex Pro Type C Trouser S,29/10/2021,0000472568,263.50,Revenue,DICK LEIGH,0
South Ribble Borough Council,http://statistics.data.gov.uk/id/local-authority/30UE,Open Spaces,Clothing and Uniforms,4410,1x TSAT4400BKM Breathdry Smock Black M,29/10/2021,0000472568,120.70,Revenue,DICK LEIGH,0
South Ribble Borough Council,http://statistics.data.gov.uk/id/local-authority/30UE,Open Spaces,Operational Equip & Tools,4010,HAIX Protector light 2.0 chainsaw boots,29/10/2021,0000472580,440.00,Revenue,DICK LEIGH,0
South Ribble Borough Council,http://statistics.data.gov.uk/id/local-authority/30UE,Open Spaces,Operational Equip & Tools,4010,Husqvarna Technical protective trouser type C,29/10/2021,0000472580,393.12,Revenue,DICK LEIGH,0
South Ribble Borough Council,http://statistics.data.gov.uk/id/local-authority/30UE,Open Spaces,Operational Equip & Tools,4010,CHAINSAW GLOVES - HUSQVARNA  579380209 size 10,29/10/2021,0000472580,21.24,Revenue,DICK LEIGH,0
South Ribble Borough Council,http://statistics.data.gov.uk/id/local-authority/30UE,Open Spaces,External Contractors Charges,4570,"Tree removal at Hedgerows Road, Leyland",06/10/2021,0000472133,"8,333.33",Revenue,DISCOUNT TREE SERVICES LIMITED,0
South Ribble Borough Council,http://statistics.data.gov.uk/id/local-authority/30UE,Capital,Cap Contract Payment,C230,"Extra Care Scheme at West Paddock, Leyland, Provision of BREAAM Services RIBA Stage 1-2, Value - 2,980 as per NAME REDACTED",29/10/2021,0000472054,930.00,Revenue,Energy Council Ltd is a Trading Name of EC Energy,0
South Ribble Borough Council,http://statistics.data.gov.uk/id/local-authority/30UE,Central Support Services,Materials General,4040,1 fuel tank PMR36A1 JFC17215,06/10/2021,0000471518,301.08,Revenue,F R SHARROCK LTD,0
South Ribble Borough Council,http://statistics.data.gov.uk/id/local-authority/30UE,Central Support Services,Materials General,4040,20 sole plates BIN 1265,06/10/2021,0000471829,687.80,Revenue,F R SHARROCK LTD,0
South Ribble Borough Council,http://statistics.data.gov.uk/id/local-authority/30UE,Central Support Services,Materials General,4040,140 Sole plate screws BIn1114,06/10/2021,0000471829,44.80,Revenue,F R SHARROCK LTD,0
South Ribble Borough Council,http://statistics.data.gov.uk/id/local-authority/30UE,Central Support Services,Materials General,4040,3 x rollers- BIN 1268,13/10/2021,0000472234,360.00,Revenue,F R SHARROCK LTD,0
South Ribble Borough Council,http://statistics.data.gov.uk/id/local-authority/30UE,Central Support Services,Materials General,4040,"5 x Track Rod End Bin 1008, 12 x Bottom Blades Bin 1265, 84 x Bottom Blade Screws Bin 1114",13/10/2021,0000472347,581.00,Revenue,F R SHARROCK LTD,0
South Ribble Borough Council,http://statistics.data.gov.uk/id/local-authority/30UE,Central Support Services,Materials General,4040,"1 x lift arm, PO16HMV, JFC16929",13/10/2021,0000472350,458.32,Revenue,F R SHARROCK LTD,0
South Ribble Borough Council,http://statistics.data.gov.uk/id/local-authority/30UE,Short Term Creditors,Amount Paid,0030,Recycling - Retention Claim Back January-June 2021,06/10/2021,0000472202,"24,415.94",Revenue,FCC Environment Services (UK) Ltd,0
South Ribble Borough Council,http://statistics.data.gov.uk/id/local-authority/30UE,Short Term Creditors,Amount Paid,0030,Refuse- Retention Claim Back January-June 2021,06/10/2021,0000472202,"18,314.23",Revenue,FCC Environment Services (UK) Ltd,0
South Ribble Borough Council,http://statistics.data.gov.uk/id/local-authority/30UE,Short Term Creditors,Amount Paid,0030,Clinical Waste - Retention Claim Back January-June 2021,06/10/2021,0000472202,154.04,Revenue,FCC Environment Services (UK) Ltd,0
South Ribble Borough Council,http://statistics.data.gov.uk/id/local-authority/30UE,Short Term Creditors,Amount Paid,0030,Bulky Waste- Retention Claim Back January-June 2021,06/10/2021,0000472202,517.46,Revenue,FCC Environment Services (UK) Ltd,0
South Ribble Borough Council,http://statistics.data.gov.uk/id/local-authority/30UE,Short Term Creditors,Amount Paid,0030,April-May Catch Up - Retention Claim Back,06/10/2021,0000472202,274.87,Revenue,FCC Environment Services (UK) Ltd,0
South Ribble Borough Council,http://statistics.data.gov.uk/id/local-authority/30UE,Waste Collection,External Contractors Charges,4570,Residual Waste Collections- September 2021,13/10/2021,0000472428,"45,839.72",Revenue,FCC Environment Services (UK) Ltd,0
South Ribble Borough Council,http://statistics.data.gov.uk/id/local-authority/30UE,Recycling,External Contractors Charges,4570,Dry recyclable non terrace- September 2021,13/10/2021,0000472428,"46,926.36",Revenue,FCC Environment Services (UK) Ltd,0
South Ribble Borough Council,http://statistics.data.gov.uk/id/local-authority/30UE,Recycling,External Contractors Charges,4570,Dry recyclable terraced - September 2021,13/10/2021,0000472428,"2,233.78",Revenue,FCC Environment Services (UK) Ltd,0
South Ribble Borough Council,http://statistics.data.gov.uk/id/local-authority/30UE,Recycling,External Contractors Charges,4570,Organic waste - non terraced- September 2021,13/10/2021,0000472428,"32,490.07",Revenue,FCC Environment Services (UK) Ltd,0
South Ribble Borough Council,http://statistics.data.gov.uk/id/local-authority/30UE,Trade Waste,External Contractors Charges,4570,Schedule 2 properties - September 2021,13/10/2021,0000472428,"1,868.87",Revenue,FCC Environment Services (UK) Ltd,0
South Ribble Borough Council,http://statistics.data.gov.uk/id/local-authority/30UE,Trade Waste,External Contractors Charges,4570,Commercial waste collections - September 2021,13/10/2021,0000472428,"7,274.67",Revenue,FCC Environment Services (UK) Ltd,0
South Ribble Borough Council,http://statistics.data.gov.uk/id/local-authority/30UE,Waste Collection,External Contractors Charges,4570,Bulky waste collections  - September 2021,13/10/2021,0000472428,"1,009.74",Revenue,FCC Environment Services (UK) Ltd,0
South Ribble Borough Council,http://statistics.data.gov.uk/id/local-authority/30UE,Waste Collection,External Contractors Charges,4570,WEEE collections - September 2021,13/10/2021,0000472428,379.38,Revenue,FCC Environment Services (UK) Ltd,0
South Ribble Borough Council,http://statistics.data.gov.uk/id/local-authority/30UE,Waste Collection,External Contractors Charges,4570,Clinical waste collections- September 2021,13/10/2021,0000472428,646.32,Revenue,FCC Environment Services (UK) Ltd,0
South Ribble Borough Council,http://statistics.data.gov.uk/id/local-authority/30UE,Waste Collection,External Contractors Charges,4570,Replacement Bins- September 2021,13/10/2021,0000472428,"5,000.00",Revenue,FCC Environment Services (UK) Ltd,0
South Ribble Borough Council,http://statistics.data.gov.uk/id/local-authority/30UE,Waste Collection,External Contractors Charges,4570,Additional Properties- September 2021,13/10/2021,0000472428,"5,233.70",Revenue,FCC Environment Services (UK) Ltd,0
South Ribble Borough Council,http://statistics.data.gov.uk/id/local-authority/30UE,Short Term Creditors,Amount Paid,0030,Retention refuse 5%,13/10/2021,0000472428,"-3,112.62",Revenue,FCC Environment Services (UK) Ltd,0
South Ribble Borough Council,http://statistics.data.gov.uk/id/local-authority/30UE,Short Term Creditors,Amount Paid,0030,Retention Recycling 5%,13/10/2021,0000472428,"-4,082.51",Revenue,FCC Environment Services (UK) Ltd,0
South Ribble Borough Council,http://statistics.data.gov.uk/id/local-authority/30UE,Waste Collection,External Contractors Charges,4570,New suites of bins 2020-21 (388 at 82.30),13/10/2021,0000472429,"31,932.40",Revenue,FCC Environment Services (UK) Ltd,0
South Ribble Borough Council,http://statistics.data.gov.uk/id/local-authority/30UE,Waste Collection,External Contractors Charges,4570,Variation to replacement bins delivered,13/10/2021,0000472429,"10,431.14",Revenue,FCC Environment Services (UK) Ltd,0
South Ribble Borough Council,http://statistics.data.gov.uk/id/local-authority/30UE,Waste Collection,External Contractors Charges,4570,Additional Clinical Waste Collections - September 2021,20/10/2021,0000472534,750.20,Revenue,FCC Environment Services (UK) Ltd,0
South Ribble Borough Council,http://statistics.data.gov.uk/id/local-authority/30UE,Short Term Creditors,Amount Paid,0030,retention,20/10/2021,0000472534,-37.51,Revenue,FCC Environment Services (UK) Ltd,0
South Ribble Borough Council,http://statistics.data.gov.uk/id/local-authority/30UE,Waste Collection,External Contractors Charges,4570,Additional bulky waste collections- September 2021,29/10/2021,0000472728,"1,096.20",Revenue,FCC Environment Services (UK) Ltd,0
South Ribble Borough Council,http://statistics.data.gov.uk/id/local-authority/30UE,Waste Collection,External Contractors Charges,4570,Additional WEEE collections- September 2021,29/10/2021,0000472728,630.48,Revenue,FCC Environment Services (UK) Ltd,0
South Ribble Borough Council,http://statistics.data.gov.uk/id/local-authority/30UE,Short Term Creditors,Amount Paid,0030,Bulky Waste Retention,29/10/2021,0000472728,-86.33,Revenue,FCC Environment Services (UK) Ltd,0
South Ribble Borough Council,http://statistics.data.gov.uk/id/local-authority/30UE,Central Support Services,Materials General,4040,FOOTBALL PITCH LINE MARKER PAINT 10LTRS PITCHMARKER Q2,29/10/2021,0000472850,498.24,Revenue,Fleet Line Markers Limited,0
South Ribble Borough Council,http://statistics.data.gov.uk/id/local-authority/30UE,Capital,Cap Contract Payment,C230,7 Strada Transfer EU03- Back Office System,20/10/2021,0000472418,"16,571.00",Revenue,Flowbird Smart City UK Ltd,0
South Ribble Borough Council,http://statistics.data.gov.uk/id/local-authority/30UE,Surplus or Deficit on Trading,Reactive Repair & Maintenance,2020,To locate leak and provide remedial works at ADDRESS REDACTED.,06/10/2021,0000471918,350.00,Revenue,Gables Uk Ltd,0
South Ribble Borough Council,http://statistics.data.gov.uk/id/local-authority/30UE,Capital,Cap Contract Payment,C230,Please undertake over cladding & insulation works  to the roof of ADDRESS REDACTED as detailed in your quotation ref AES/eb/6586/21,27/10/2021,0000472441,"19,236.00",Revenue,Gables Uk Ltd,0
South Ribble Borough Council,http://statistics.data.gov.uk/id/local-authority/30UE,Recreation & Sport,Materials General,4040,Various items of Nike Clothing for Sports Dev. New uniform,13/10/2021,0000472455,"1,323.20",Revenue,Galaxy,0
South Ribble Borough Council,http://statistics.data.gov.uk/id/local-authority/30UE,Recreation & Sport,Materials General,4040,vat rounding,13/10/2021,0000472455,0.00,Revenue,Galaxy,0
South Ribble Borough Council,http://statistics.data.gov.uk/id/local-authority/30UE,Development Control,Operational Equip & Tools,4010,"1 X HP P2V93A Grey Toner - 123.77 each, 1 x HP P2v94A photo Black  - 123.77 each, Plus 7.95 delivery charge",13/10/2021,0000472006,255.49,Revenue,GCS UK ASSOCIATES LTD,0
South Ribble Borough Council,http://statistics.data.gov.uk/id/local-authority/30UE,Central Support Services,External Contractors Charges,4570,"spec repair, JFC 17289, YD19 AUM",06/10/2021,0000472228,257.93,Revenue,GEESINK NORBA LTD,0
South Ribble Borough Council,http://statistics.data.gov.uk/id/local-authority/30UE,Central Support Services,Materials General,4040,"1 x 18 core cable- 5013450, YE19JPW, JFC17348",06/10/2021,0000472283,246.36,Revenue,GEESINK NORBA LTD,0
South Ribble Borough Council,http://statistics.data.gov.uk/id/local-authority/30UE,Central Support Services,Materials General,4040,"1 x 18 core cable- 5013450, YA19NKD, JFC17349",06/10/2021,0000472283,246.36,Revenue,GEESINK NORBA LTD,0
South Ribble Borough Council,http://statistics.data.gov.uk/id/local-authority/30UE,Surplus or Deficit on Trading,Planned Annual Repair & Maintenance,2021,"Annual Contract for the maintenance of flagpoles 2021/2022 at various sites, Worden Park, Hurst Grange Park, Civic Centre",06/10/2021,0000472255,968.00,Revenue,GLASSFIBRE FLAGPOLES LTD,0
South Ribble Borough Council,http://statistics.data.gov.uk/id/local-authority/30UE,Surplus or Deficit on Trading,Planned Annual Repair & Maintenance,2021,"Annual Contract for the maintenance of flagpoles 2021/2022 at various sites, Worden Park, Hurst Grange Park, Civic Centre",06/10/2021,0000472256,250.00,Revenue,GLASSFIBRE FLAGPOLES LTD,0
South Ribble Borough Council,http://statistics.data.gov.uk/id/local-authority/30UE,Surplus or Deficit on Trading,Planned Annual Repair & Maintenance,2021,"Annual Contract for the maintenance of flagpoles 2021/2022 at various sites, Worden Park, Hurst Grange Park, Civic Centre",06/10/2021,0000472257,250.00,Revenue,GLASSFIBRE FLAGPOLES LTD,0
South Ribble Borough Council,http://statistics.data.gov.uk/id/local-authority/30UE,Surplus or Deficit on Trading,Planned Annual Repair & Maintenance,2021,"Annual Contract for the maintenance of flagpoles 2021/2022 at various sites, Worden Park, Hurst Grange Park, Civic Centre",06/10/2021,0000472258,250.00,Revenue,GLASSFIBRE FLAGPOLES LTD,0
South Ribble Borough Council,http://statistics.data.gov.uk/id/local-authority/30UE,Capital,Capital Grant,C570,DFG adaptation to bathroom at ADDRESS REDACTED as per quote supplied of 3803.00. TOTAL COST 3803.00,06/10/2021,0000472211,"3,965.80",Revenue,GOS Heating Ltd,0
South Ribble Borough Council,http://statistics.data.gov.uk/id/local-authority/30UE,Capital,Capital Grant,C570,DFG WORK FOR ADAPTATION FOR LEVEL ACCESS SHOWER AT ADDRESS REDACTED AS PER SRBC PLANS AND QUOTE SUPPLIED,06/10/2021,0000472217,"4,265.00",Revenue,GOS Heating Ltd,0
South Ribble Borough Council,http://statistics.data.gov.uk/id/local-authority/30UE,Capital,Capital Grant,C570,"DISREPAIR GRANT FOR BOILER AT ADDRESS REDACTED. ECO FUNDING 1215.58, CLIENT CONTRIBUTION 753.49",20/10/2021,0000472489,753.49,Revenue,GOS Heating Ltd,0
South Ribble Borough Council,http://statistics.data.gov.uk/id/local-authority/30UE,Surplus or Deficit on Trading,Reactive Repair & Maintenance,2020,"To attend ADDRESS REDACTED. As per NAME REDACTED request. Boiler not operating correctly, suspected pump issue. Inspect and repair.",29/10/2021,0000472848,356.40,Revenue,GOS Heating Ltd,0
South Ribble Borough Council,http://statistics.data.gov.uk/id/local-authority/30UE,Capital,Cap Contract Payment,C230,Provision of Quantity Surveyor Services and Procurement Support Services to RIBA Stage 3 / Leyland Town Deal Project as per NAME REDACTED,13/10/2021,0000472363,"2,352.00",Revenue,Gosling Consulting Limited,0
South Ribble Borough Council,http://statistics.data.gov.uk/id/local-authority/30UE,Capital,Cap Contract Payment,C230,"Project � Mckenzie Arms Works - PM/QS Services  (updated Stage 2) as per NAME REDACTED Value - 11,600",27/10/2021,0000472761,"2,900.00",Revenue,Gosling Consulting Limited,0
South Ribble Borough Council,http://statistics.data.gov.uk/id/local-authority/30UE,Capital,Cap Contract Payment,C230,"Please provide services to Worden Hall PM and QS support RIBA stage 4-7 � As per contract terms, Fee proposal and draw down schedule",27/10/2021,0000472762,"3,850.00",Revenue,Gosling Consulting Limited,0
South Ribble Borough Council,http://statistics.data.gov.uk/id/local-authority/30UE,Central Support Services,Materials General,4040,GRAFFITI REMOVER TRANSGEL (5 LITRE),29/10/2021,0000472910,299.25,Revenue,Graffiti Removal Ltd,0
South Ribble Borough Council,http://statistics.data.gov.uk/id/local-authority/30UE,Capital,Cap Contract Payment,C230,(Stages 4-7) for the delivery of the Worden Hall refurbishment as per tender as per NAME REDACTED,27/10/2021,0000472639,"2,500.00",Revenue,GRAHAM SCHOFIELD ASSOCIATES,0
South Ribble Borough Council,http://statistics.data.gov.uk/id/local-authority/30UE,Surplus or Deficit on Trading,Reactive Repair & Maintenance,2020,Leyland Museum as per NAME REDACTED 400.00 � Removal of Asbestos from site,13/10/2021,0000472055,400.00,Revenue,Greenfield Removals,0
South Ribble Borough Council,http://statistics.data.gov.uk/id/local-authority/30UE,Capital,Cap Contract Payment,C230,"Work: supply and delivery of tree stakes, rubber blocks and tree ties as per NAME REDACTED request Cost: 490.01",20/10/2021,0000472543,490.01,Revenue,Green-Tech Ltd,0
South Ribble Borough Council,http://statistics.data.gov.uk/id/local-authority/30UE,Open Spaces,GM Refurbishment,4657,Installation of 2x2m of Notts Sport Childsplay carpet in Olive Green to the end of the large slide at Hurst Grange Park Playground.,06/10/2021,0000472120,680.00,Revenue,GROUNDWORK LEISURE SERVICES LTD,0
South Ribble Borough Council,http://statistics.data.gov.uk/id/local-authority/30UE,Open Spaces,GM Refurbishment,4657,Sand filled carpet surfacing approx. 17m2 at Hurst Grange Park - Coach House,06/10/2021,0000472146,982.00,Revenue,GROUNDWORK LEISURE SERVICES LTD,0
South Ribble Borough Council,http://statistics.data.gov.uk/id/local-authority/30UE,Planning Policy,Professional Fees,4510,Central Lancashire Housing Density Study,27/10/2021,0000472679,"5,833.33",Revenue,Hive Land and Planning,0
South Ribble Borough Council,http://statistics.data.gov.uk/id/local-authority/30UE,Short Term Creditors,Amount Received,0140,,20/10/2021,0000471667,390.00,Revenue,HM REVENUE & CUSTOMS,0
South Ribble Borough Council,http://statistics.data.gov.uk/id/local-authority/30UE,Capital,Cap Contract Payment,C230,"Resin Bonded Surfacing, Hurst Grange Park Coach House, as per quote Ref 12/0141",29/10/2021,0000472561,"10,925.93",Revenue,HMS DECORATIVE SURFACING LTD,0
South Ribble Borough Council,http://statistics.data.gov.uk/id/local-authority/30UE,Recreation & Sport,Maintenance & Repair,4013,"Wet Side Plant Room, Pool Heat Exchanger, Isolate existing 3'' Siemens 3 port valve, Drain section of pipe work, Remove leaking port valve",20/10/2021,0000472315,874.23,Revenue,Hodgkinson Bennis Limited,0
South Ribble Borough Council,http://statistics.data.gov.uk/id/local-authority/30UE,Economic Development,Reactive Repair & Maintenance,2020,Please rebuild the pillar outside Leyland market as agreed with Facilities management and detailed in your e-mail quote dated 10th March 2021,06/10/2021,0000472219,"1,850.00",Revenue,Holden Building Solutions Limited,0
South Ribble Borough Council,http://statistics.data.gov.uk/id/local-authority/30UE,Economic Development,Reactive Repair & Maintenance,2020,labour,06/10/2021,0000472219,600.00,Revenue,Holden Building Solutions Limited,0
South Ribble Borough Council,http://statistics.data.gov.uk/id/local-authority/30UE,Short Term Debtors,Amount Paid,0030,Deed of release related to Tranch 2 for Leyland Test Track from 25th Aug 2020 - 12 Feb 2021,13/10/2021,0000466751,"1,020.00",Revenue,HOMES AND COMMUNITIES AGENCY (HCA),0
South Ribble Borough Council,http://statistics.data.gov.uk/id/local-authority/30UE,Short Term Debtors,Amount Paid,0030,Deed of release related to Tranche 1 transfers for Leyland test Track 12 - Feb to 19 March 21,13/10/2021,0000466752,"1,020.00",Revenue,HOMES AND COMMUNITIES AGENCY (HCA),0
South Ribble Borough Council,http://statistics.data.gov.uk/id/local-authority/30UE,Capital,Cap Contract Payment,C230,"Please supply and install of 3ph AC coupled inverter, 25.2kwh of Lithium batteries  at the Civic Centre",06/10/2021,0000472166,"18,755.00",Revenue,Honest-energy LTD,0
South Ribble Borough Council,http://statistics.data.gov.uk/id/local-authority/30UE,Central Support Services,Reactive Repair & Maintenance,2020,"Fall arrest system 1, Removal of flat roof PV panels that are obstructing repair work, Reinstallation 375.00 as per NAME REDACTED request",20/10/2021,0000472401,"1,230.00",Revenue,Honest-energy LTD,0
South Ribble Borough Council,http://statistics.data.gov.uk/id/local-authority/30UE,Open Spaces,GM Refurbishment,4657,"T900 4045 02 Prosafe major repair kit (Yellow) PPC Yellow 1021 x2, as per Quote Number Q-140395",13/10/2021,0000472004,400.00,Revenue,IAE,0
South Ribble Borough Council,http://statistics.data.gov.uk/id/local-authority/30UE,Open Spaces,GM Refurbishment,4657,"V040 4000 00 Prosafe gate striker plate (bolts to gate) withfixing boltsPPC Yellow 1021 x10, as per Quote Number Q-140395",13/10/2021,0000472004,260.00,Revenue,IAE,0
South Ribble Borough Council,http://statistics.data.gov.uk/id/local-authority/30UE,Open Spaces,GM Refurbishment,4657,Carriage,13/10/2021,0000472004,24.50,Revenue,IAE,0
South Ribble Borough Council,http://statistics.data.gov.uk/id/local-authority/30UE,Elections,Electoral Administration Act,4970,"IDOX 2021 CANVASS OPTIONS (INC SETUP, RESPONSES, DATA RELOADS, PRINT AND SEND AND TELEPHONE CANVASS.",20/10/2021,0000472260,"5,478.23",Revenue,IDOX PLC,0
South Ribble Borough Council,http://statistics.data.gov.uk/id/local-authority/30UE,Local Tax Collection,Professional Fees,4510,"RV Finder re r/o Copside, Longton and Workshop ADDRESS REDACTED.",13/10/2021,0000471375,415.00,Revenue,Inform CPI Ltd,0
South Ribble Borough Council,http://statistics.data.gov.uk/id/local-authority/30UE,Local Tax Collection,Professional Fees,4510,can by cred,13/10/2021,0000472299,530.00,Revenue,Inform CPI Ltd,0
South Ribble Borough Council,http://statistics.data.gov.uk/id/local-authority/30UE,Local Tax Collection,Professional Fees,4510,can by cred,13/10/2021,0000472300,"1,235.00",Revenue,Inform CPI Ltd,0
South Ribble Borough Council,http://statistics.data.gov.uk/id/local-authority/30UE,Open Spaces,External Contractors Charges,4570,Conifer removal - Tamar Close,13/10/2021,0000471794,500.00,Revenue,Ingham Tree Services,0
South Ribble Borough Council,http://statistics.data.gov.uk/id/local-authority/30UE,Central Support Services,Materials General,4040,QC10 - QUICK SET CONCRETE,06/10/2021,0000472003,"1,277.92",Revenue,INSTARMAC GROUP PLC,0
South Ribble Borough Council,http://statistics.data.gov.uk/id/local-authority/30UE,Capital,Cap Contract Payment,C230,"Architects fees for stages 5&6 Hurst Grange Coach House, Penwortham",13/10/2021,0000472357,"1,177.00",Revenue,Ivan Wilson Architect,0
South Ribble Borough Council,http://statistics.data.gov.uk/id/local-authority/30UE,Capital,Cap Contract Payment,C230,1 Envirostore 1000 Litre bunded Oil Tank c/w Apollo 1580.000 as per NAME REDACTED. Supply and install as quote 11764,06/10/2021,0000472309,"1,580.00",Revenue,J SEED & CO LTD,0
South Ribble Borough Council,http://statistics.data.gov.uk/id/local-authority/30UE,Central Support Services,Operational Equip & Tools,4010,1 x SAMOA Waste Oil Gravity Collection Unit with Pump Discharge - 100 Litres.,27/10/2021,0000472572,560.00,Revenue,J SEED & CO LTD,0
South Ribble Borough Council,http://statistics.data.gov.uk/id/local-authority/30UE,Capital,Cap Contract Payment,C230,Costs for work on the refurbishment of Worden Hall Central Buildings,06/10/2021,0000471909,"24,250.00",Revenue,John Turner Construction Group Ltd,0
South Ribble Borough Council,http://statistics.data.gov.uk/id/local-authority/30UE,Capital,Cap Contract Payment,C230,"To pay retention for 630/LP Leyland Paths as per NAME REDACTED 2.5% Retention now due 2,432.55",27/10/2021,0000472419,"2,432.55",Revenue,John Wade Groundworks Ltd t/a Wade Group,0
South Ribble Borough Council,http://statistics.data.gov.uk/id/local-authority/30UE,Recreation & Sport,Professional Fees,4510,August 2021 Instructor Fee,06/10/2021,0000471860,330.00,Revenue,Joseph Bates,0
South Ribble Borough Council,http://statistics.data.gov.uk/id/local-authority/30UE,Development Control,Advertising,4841,Purchase order - for public notices for planning applications appearing in the LEP,13/10/2021,0000472213,"1,296.00",Revenue,JPI Media - JOHNSTON PUBLISHING (NORTH WEST),0
South Ribble Borough Council,http://statistics.data.gov.uk/id/local-authority/30UE,Development Control,Advertising,4841,Purchase order - for public notices for planning applications appearing in the LEP,13/10/2021,0000472220,810.00,Revenue,JPI Media - JOHNSTON PUBLISHING (NORTH WEST),0
South Ribble Borough Council,http://statistics.data.gov.uk/id/local-authority/30UE,Development Control,Advertising,4841,Purchase order - for public notices for planning applications appearing in the LEP,13/10/2021,0000472365,810.00,Revenue,JPI Media - JOHNSTON PUBLISHING (NORTH WEST),0
South Ribble Borough Council,http://statistics.data.gov.uk/id/local-authority/30UE,Open Spaces,Hiring Expenses,3212,"1.5T Excavator, On hire 15.10.21 (1 week)",29/10/2021,0000472845,250.00,Revenue,K H HIRE SERVICES,0
South Ribble Borough Council,http://statistics.data.gov.uk/id/local-authority/30UE,Open Spaces,External Contractors Charges,4570,"Grass cutting - Longton Bypass, Samlesbury and end of M65/Lostock Lane (August  2021)",29/10/2021,0000472695,"3,650.00",Revenue,KAYS TRAFFIC MANAGEMENT LTD,0
South Ribble Borough Council,http://statistics.data.gov.uk/id/local-authority/30UE,Central Support Services,Short Course,1402,NAME REDACTED TO ATTEND 'WAMITAB ENVIRONMENTAL ENFORCEMENT ACADEMY' ONLINE VIA TEAMS ON: 7-10 SEPTEMBER 2021,20/10/2021,0000471510,"1,199.00",Revenue,KEEP BRITAIN TIDY,0
South Ribble Borough Council,http://statistics.data.gov.uk/id/local-authority/30UE,Community Development,Professional Fees,4510,"HAF camps over 4 weeks, 240 spaces at 14 per head.",27/10/2021,0000472643,"3,360.00",Revenue,KEY UNLOCKING FUTURES LTD,0
South Ribble Borough Council,http://statistics.data.gov.uk/id/local-authority/30UE,Regulatory Services,Poisons & Baits,4041,1 x AF Pinpoint Bait Stations AFPIN20BLK,13/10/2021,0000470430,13.37,Revenue,KILLGERM CHEMICALS LTD,0
South Ribble Borough Council,http://statistics.data.gov.uk/id/local-authority/30UE,Regulatory Services,Poisons & Baits,4041,50 x Snap E Rat Traps SANPERAT @ 3.15,13/10/2021,0000470430,107.50,Revenue,KILLGERM CHEMICALS LTD,0
South Ribble Borough Council,http://statistics.data.gov.uk/id/local-authority/30UE,Regulatory Services,Poisons & Baits,4041,20 x SNAP E Mouse Trap SANPEMSE @ 1.58,13/10/2021,0000470430,23.00,Revenue,KILLGERM CHEMICALS LTD,0
South Ribble Borough Council,http://statistics.data.gov.uk/id/local-authority/30UE,Regulatory Services,Poisons & Baits,4041,2 Mouse Boxes AFSBLKBLK @ 14.95,13/10/2021,0000470430,24.66,Revenue,KILLGERM CHEMICALS LTD,0
South Ribble Borough Council,http://statistics.data.gov.uk/id/local-authority/30UE,Regulatory Services,Poisons & Baits,4041,50 X Metal Keys AFKEYMETALKEY @ 0.35,13/10/2021,0000470430,14.50,Revenue,KILLGERM CHEMICALS LTD,0
South Ribble Borough Council,http://statistics.data.gov.uk/id/local-authority/30UE,Regulatory Services,Poisons & Baits,4041,1 x FICAM D FICUDU003 @ 24.00,13/10/2021,0000470430,24.00,Revenue,KILLGERM CHEMICALS LTD,0
South Ribble Borough Council,http://statistics.data.gov.uk/id/local-authority/30UE,Regulatory Services,Poisons & Baits,4041,2 x Vertox Sewer Bait VERTWW010K @ 54.75,13/10/2021,0000470430,120.00,Revenue,KILLGERM CHEMICALS LTD,0
South Ribble Borough Council,http://statistics.data.gov.uk/id/local-authority/30UE,Regulatory Services,Poisons & Baits,4041,6 x PA2 Replacement Cartridge (50) @ 27.97,13/10/2021,0000470431,167.82,Revenue,KILLGERM CHEMICALS LTD,0
South Ribble Borough Council,http://statistics.data.gov.uk/id/local-authority/30UE,Regulatory Services,Poisons & Baits,4041,Maxforce Quantum Ant Gel (Box of 4 x 30g),13/10/2021,0000470431,123.00,Revenue,KILLGERM CHEMICALS LTD,0
South Ribble Borough Council,http://statistics.data.gov.uk/id/local-authority/30UE,Community Development,Legal Fees,4513,PROFESSIONAL SERVICES IN REGARD TO A SETTLEMENT AGREEMENT FOR NAME REDACTED,27/10/2021,0000472784,350.00,Revenue,LAKER LEGAL SOLICITORS,0
South Ribble Borough Council,http://statistics.data.gov.uk/id/local-authority/30UE,Community Development,Professional Fees,4510,"Adult Mental Health First Aid Course 13-16 September, delivery plus resources",13/10/2021,0000472481,"1,960.00",Revenue,Lancashire Mind Limited,0
South Ribble Borough Council,http://statistics.data.gov.uk/id/local-authority/30UE,Waste Collection,Clinical Waste Disposal,5112,June 2021 - Incineration of Clinical Waste,06/10/2021,0000471822,815.77,Revenue,LANCASHIRE TEACHING FT,0
South Ribble Borough Council,http://statistics.data.gov.uk/id/local-authority/30UE,Waste Collection,Clinical Waste Disposal,5112,April 2021 - Incineration of Clinical Waste,06/10/2021,0000471823,722.21,Revenue,LANCASHIRE TEACHING FT,0
South Ribble Borough Council,http://statistics.data.gov.uk/id/local-authority/30UE,Central Support Services,Materials General,4040,"1x full service kit, YD19 ATZ, JFC17352 (NAME REDACTED)",06/10/2021,0000472285,401.46,Revenue,LANCS DAF,0
South Ribble Borough Council,http://statistics.data.gov.uk/id/local-authority/30UE,Central Support Services,Materials General,4040,"1 full service kit including oil, 4 ARB bushes, YA19 NKC JFC17367",13/10/2021,0000472344,483.97,Revenue,LANCS DAF,0
South Ribble Borough Council,http://statistics.data.gov.uk/id/local-authority/30UE,Central Support Services,Materials General,4040,"1x full service kit and seat belt lock, YA19 NGN, JFC17044 (NAME REDACTED)",27/10/2021,0000472742,463.97,Revenue,LANCS DAF,0
South Ribble Borough Council,http://statistics.data.gov.uk/id/local-authority/30UE,Central Support Services,Materials General,4040,"2 x sets of brake pads, YA19NKD, JFC17453",27/10/2021,0000472756,424.33,Revenue,LANCS DAF,0
South Ribble Borough Council,http://statistics.data.gov.uk/id/local-authority/30UE,Central Support Services,Materials General,4040,"1 x full service kit including oil, YA19NJZ, JFC17455",27/10/2021,0000472776,405.42,Revenue,LANCS DAF,0
South Ribble Borough Council,http://statistics.data.gov.uk/id/local-authority/30UE,Central Support Services,College Course,1403,NAME REDACTED TO ATTEND 'OPEN AWARDS LEVEL 3 CERTIFICATE IN FOREST SCHOOL PROGRAMME LEADERSHIP',13/10/2021,0000472312,850.00,Revenue,LANCS WILDLIFE TRUST,0
South Ribble Borough Council,http://statistics.data.gov.uk/id/local-authority/30UE,Open Spaces,Professional Fees,4510,"Annual management of Friends of Preston Junction volunteer group, maintenance of Preston Junction/Central Parks, as per NAME REDACTED request",27/10/2021,0000472523,"1,250.00",Revenue,LANCS WILDLIFE TRUST,0
South Ribble Borough Council,http://statistics.data.gov.uk/id/local-authority/30UE,Capital,Cap Contract Payment,C230,"LOSTOCK HALL MEMORIAL quote dated 23/04/2021 for NAME REDACTED, CUT BACK EXISTING SHRUBS TO ALLOW INSTALLATION.",29/10/2021,0000472701,"3,198.00",Revenue,LANDSCAPE ENGINEERING LIMITED,0
South Ribble Borough Council,http://statistics.data.gov.uk/id/local-authority/30UE,Recreation & Sport,Professional Fees,4510,August 2021 Direct Debit Collection Fee,06/10/2021,0000472229,315.00,Revenue,Legend Software,0
South Ribble Borough Council,http://statistics.data.gov.uk/id/local-authority/30UE,Recreation & Sport,Professional Fees,4510,August 2021 Direct Debit Collection Fee,06/10/2021,0000472229,210.00,Revenue,Legend Software,0
South Ribble Borough Council,http://statistics.data.gov.uk/id/local-authority/30UE,Recreation & Sport,Professional Fees,4510,August 2021 Direct Debit Collection Fee,06/10/2021,0000472229,150.00,Revenue,Legend Software,0
South Ribble Borough Council,http://statistics.data.gov.uk/id/local-authority/30UE,Recreation & Sport,Professional Fees,4510,August 2021 Direct Debit Collection Fee,06/10/2021,0000472229,150.00,Revenue,Legend Software,0
South Ribble Borough Council,http://statistics.data.gov.uk/id/local-authority/30UE,Capital,Cap Contract Payment,C230,Supply of various horse shoe sculptures for Hurst Grange Coach House,13/10/2021,0000472221,"6,320.00",Revenue,Leyland Lane Wrought Iron Gates & Railings,0
South Ribble Borough Council,http://statistics.data.gov.uk/id/local-authority/30UE,Local Tax Collection,Consultancy Fees,4541,Empty Home Review August 21,06/10/2021,0000472057,"5,925.93",Revenue,LIBERATA UK LTD,0
South Ribble Borough Council,http://statistics.data.gov.uk/id/local-authority/30UE,Recreation & Sport,Reactive Repair & Maintenance,2020,"Call Out, Labour (Minimum one hour) RGX161000779, 1017223-0001, SERVICE KIT: GX TANK SHELL",06/10/2021,0000472246,304.96,Revenue,Life Fitness (UK) Ltd,0
South Ribble Borough Council,http://statistics.data.gov.uk/id/local-authority/30UE,Recreation & Sport,Reactive Repair & Maintenance,2020,"Call Out - 82.00, Labour 74.00, 1017223-0001 Service kit: GX Tank Shell - 148.96",27/10/2021,0000472663,304.96,Revenue,Life Fitness (UK) Ltd,0
South Ribble Borough Council,http://statistics.data.gov.uk/id/local-authority/30UE,Community Development,Professional Fees,4510,Living Wage Foundation Annual Fee,27/10/2021,0000472682,480.00,Revenue,Living Wage Foundation,0
South Ribble Borough Council,http://statistics.data.gov.uk/id/local-authority/30UE,Central Support Services,Reactive Repair & Maintenance,2020,For the supply and installation of Solar Film to 18no. panes in the Conservative office as per REF31667/1 and NAME REDACTED request,06/10/2021,0000472263,895.00,Revenue,LUSTALUX LTD,0
South Ribble Borough Council,http://statistics.data.gov.uk/id/local-authority/30UE,Open Spaces,GM Refurbishment,4657,"Up to 8 loads (16OT) 10 mm gravel delivered to Haig Avenue, Leyland.",06/10/2021,0000472127,"1,588.41",Revenue,M C & M A STEWART HAULAGE LTD,0
South Ribble Borough Council,http://statistics.data.gov.uk/id/local-authority/30UE,Open Spaces,GM Refurbishment,4657,"Up to 10 Loads (200T) Grade 2 topsoil delivered to Haig Avenue, Leyland",06/10/2021,0000472128,"2,760.00",Revenue,M C & M A STEWART HAULAGE LTD,0
South Ribble Borough Council,http://statistics.data.gov.uk/id/local-authority/30UE,Open Spaces,GM Refurbishment,4657,"Up to 10 Loads (200T) Grade 2 topsoil delivered to Haig Avenue, Leyland",06/10/2021,0000472129,"1,840.00",Revenue,M C & M A STEWART HAULAGE LTD,0
South Ribble Borough Council,http://statistics.data.gov.uk/id/local-authority/30UE,Open Spaces,GM Refurbishment,4657,"Up to 8 loads (16OT) 10 mm gravel delivered to Haig Avenue, Leyland.",06/10/2021,0000472130,"1,072.19",Revenue,M C & M A STEWART HAULAGE LTD,0
South Ribble Borough Council,http://statistics.data.gov.uk/id/local-authority/30UE,Open Spaces,GM Refurbishment,4657,20T of Grade 1 topsoil to be delivered to the Coach House at Hurst Grange Park,06/10/2021,0000472135,460.00,Revenue,M C & M A STEWART HAULAGE LTD,0
South Ribble Borough Council,http://statistics.data.gov.uk/id/local-authority/30UE,Open Spaces,GM Refurbishment,4657,"200T Grade 1 topsoil delivered to Haig Avenue Green, Leyland",29/10/2021,0000472893,460.00,Revenue,M C & M A STEWART HAULAGE LTD,0
South Ribble Borough Council,http://statistics.data.gov.uk/id/local-authority/30UE,Open Spaces,GM Refurbishment,4657,"200T Grade 1 topsoil delivered to Haig Avenue Green, Leyland",29/10/2021,0000472894,780.00,Revenue,M C & M A STEWART HAULAGE LTD,0
South Ribble Borough Council,http://statistics.data.gov.uk/id/local-authority/30UE,Open Spaces,GM Refurbishment,4657,"Up to 8 loads (16OT) 10 mm gravel delivered to Haig Avenue, Leyland.",29/10/2021,0000472895,"1,054.17",Revenue,M C & M A STEWART HAULAGE LTD,0
South Ribble Borough Council,http://statistics.data.gov.uk/id/local-authority/30UE,Capital,Capital Grant,C570,"DFG WORKS FOR RAMP AND BATHROOMK WORKS AT ADDRESS REDACTED. New progress property, 50% OF QUOTE",13/10/2021,0000472440,"3,611.78",Revenue,MAHONEY CONTRACTORS LTD,0
South Ribble Borough Council,http://statistics.data.gov.uk/id/local-authority/30UE,Capital,Capital Grant,C570,DFG WORKS FOR LEVEL ACCESS BATHROOM AT ADDRESS REDACTED. NEW PROGRESS PROPERTY SO 50% OF TOTAL QUOTE,27/10/2021,0000472841,"2,886.10",Revenue,MAHONEY CONTRACTORS LTD,0
South Ribble Borough Council,http://statistics.data.gov.uk/id/local-authority/30UE,Open Spaces,Operational Equip & Tools,4010,"1x Pair 76mm 16x7 ft goals, Code - FOT-526",06/10/2021,0000471862,572.00,Revenue,MARK HARROD LIMITED,0
South Ribble Borough Council,http://statistics.data.gov.uk/id/local-authority/30UE,Open Spaces,Operational Equip & Tools,4010,Delivery,06/10/2021,0000471862,120.00,Revenue,MARK HARROD LIMITED,0
South Ribble Borough Council,http://statistics.data.gov.uk/id/local-authority/30UE,Economic Development,Partnership,485I,Partnership payment including STEAM monitoring and website/marketing campaign inclusion 2021/22,27/10/2021,0000471728,"2,650.00",Revenue,MARKETING LANCASHIRE LIMITED,0
South Ribble Borough Council,http://statistics.data.gov.uk/id/local-authority/30UE,Community Development,Miscellaneous Expenses,4851,"To provide plants as prizes for the South Ribble in Bloom celebration event on 14th October, 16 prizes, as discussed and agreed",27/10/2021,0000472650,250.00,Revenue,Marshall Smalley,0
South Ribble Borough Council,http://statistics.data.gov.uk/id/local-authority/30UE,Capital,Capital Grant,C570,DFG WORK FOR ADAPTATION TO CREATE BEDROOM/BATHROOM IN CONSERVATORY AT ADDRESS REDACTED AS PER SRBC PLANS,06/10/2021,0000472222,"12,500.00",Revenue,MBP CONSTRUCTION(NW) LTD,0
South Ribble Borough Council,http://statistics.data.gov.uk/id/local-authority/30UE,Open Spaces,Operational Equip & Tools,4010,2 x FA Trauma Kits,29/10/2021,0000472839,462.95,Revenue,MediArb Training,0
South Ribble Borough Council,http://statistics.data.gov.uk/id/local-authority/30UE,Central Support Services,External Contractors Charges,4570,"Vehicle recovery from Froom Street Chorley, YA19 NJZ JFC17373",20/10/2021,0000472491,306.25,Revenue,MILLERS OF LONGTON LTD,0
South Ribble Borough Council,http://statistics.data.gov.uk/id/local-authority/30UE,Open Spaces,External Contractors Charges,4570,Buffett for 120 people at Hurst Grange Coach House,06/10/2021,0000472237,810.00,Revenue,Miss Lisa Mallinson,0
South Ribble Borough Council,http://statistics.data.gov.uk/id/local-authority/30UE,Open Spaces,GM Refurbishment,4657,"Tables & Chairs for Visitor Centre, Hurst Grange Park",13/10/2021,0000472326,"1,050.00",Revenue,Miss Lisa Mallinson,0
South Ribble Borough Council,http://statistics.data.gov.uk/id/local-authority/30UE,Community Development,External Catering Charges,4575,"To provide food for the HAF programme as per discussed and agreed for 14 September, 21 September and 28 September.",20/10/2021,0000472625,360.00,Revenue,Miss Lisa Mallinson,0
South Ribble Borough Council,http://statistics.data.gov.uk/id/local-authority/30UE,Central Support Services,Materials General,4040,"Altanator, VU11 HSZ, JFC 17276",27/10/2021,0000472705,280.00,Revenue,MJC Auto Electrics,0
South Ribble Borough Council,http://statistics.data.gov.uk/id/local-authority/30UE,Capital,Capital Grant,C570,DFG WORK TO ADAPT A LEVEL ACCESS BATHROOM AT ADDRESS REDACTED AS PER SRBC PLANS AND QUOTE SUPPLIED,20/10/2021,0000472504,"4,114.00",Revenue,MSG Building and Construction Ltd,0
South Ribble Borough Council,http://statistics.data.gov.uk/id/local-authority/30UE,Central Support Services,Computer Equipment,4241,"HP 45W Smart AC Adapter, TravelMate X3 TMX349-M AC Adapter, Lenovo 45W AC Wall Adapter, Satellite Pro R50-EC AC Adapter",29/10/2021,0000472324,254.22,Revenue,MYPREMIER LTD,0
South Ribble Borough Council,http://statistics.data.gov.uk/id/local-authority/30UE,Central Support Services,External Contractors Charges,4570,Service Wash 7.9.21 VO21 VYL JFC17405,20/10/2021,0000472493,65.00,Revenue,NAYLORS TRANSPORT (LEYLAND) ltd,0
South Ribble Borough Council,http://statistics.data.gov.uk/id/local-authority/30UE,Central Support Services,External Contractors Charges,4570,Service Wash 8.9.21 VO65 KPZ JFC17406,20/10/2021,0000472493,65.00,Revenue,NAYLORS TRANSPORT (LEYLAND) ltd,0
South Ribble Borough Council,http://statistics.data.gov.uk/id/local-authority/30UE,Central Support Services,External Contractors Charges,4570,Service Wash VX18 KLC JFC17407,20/10/2021,0000472493,65.00,Revenue,NAYLORS TRANSPORT (LEYLAND) ltd,0
South Ribble Borough Council,http://statistics.data.gov.uk/id/local-authority/30UE,Central Support Services,External Contractors Charges,4570,Service Wash PO70 YOG JFC17408,20/10/2021,0000472493,65.00,Revenue,NAYLORS TRANSPORT (LEYLAND) ltd,0
South Ribble Borough Council,http://statistics.data.gov.uk/id/local-authority/30UE,Recreation & Sport,Professional Fees,4510,August 2021 Instructor Fee,06/10/2021,0000472208,336.00,Revenue,Nicholas Pilkington-Lowe,0
South Ribble Borough Council,http://statistics.data.gov.uk/id/local-authority/30UE,Central Support Services,Corp Subs to Professional Bodies,4720,Full Membership to Northern Housing Consortium (01 April 2020 - 31 March 2021) 910 plus VAT 182 TOTAL 1092.00,06/10/2021,0000471947,950.00,Revenue,NORTHERN HOUSING CONSORTIUM,0
South Ribble Borough Council,http://statistics.data.gov.uk/id/local-authority/30UE,Central Support Services,Materials General,4040,SCARAB MINI SWEEPER BRUSHES - POLY/WIRE MIX MATHIEU-0120089,29/10/2021,0000472579,"1,207.50",Revenue,NORTHERN MUNICIPAL SPARES LTD,0
South Ribble Borough Council,http://statistics.data.gov.uk/id/local-authority/30UE,Recreation & Sport,Electricity,2303,01/06/2021 - 30/06/2021,20/10/2021,0000472239,"5,204.54",Revenue,NPOWER Business,0
South Ribble Borough Council,http://statistics.data.gov.uk/id/local-authority/30UE,Recreation & Sport,Electricity,2303,01/05/21 - 31/05/21,20/10/2021,0000472240,"5,517.09",Revenue,NPOWER Business,0
South Ribble Borough Council,http://statistics.data.gov.uk/id/local-authority/30UE,Recreation & Sport,Electricity,2303,01/04/21 - 30/04/21,20/10/2021,0000472241,"4,289.98",Revenue,NPOWER Business,0
South Ribble Borough Council,http://statistics.data.gov.uk/id/local-authority/30UE,Community Development,Contributions to Other Bodies,4730,To provide the items for the food parcels for the Holiday Hunger project for August,13/10/2021,0000472479,"22,200.00",Revenue,Oncore Trading,0
South Ribble Borough Council,http://statistics.data.gov.uk/id/local-authority/30UE,Community Development,Contributions to Other Bodies,4730,To provide the items for the food parcels for the Holiday Hunger project for August,13/10/2021,0000472480,"22,200.00",Revenue,Oncore Trading,0
South Ribble Borough Council,http://statistics.data.gov.uk/id/local-authority/30UE,Central Support Services,Reactive Repair & Maintenance,2020,"Remove. 2 number existing doors Supply and fit 3x 2 stud work to openings, plasterboard to both sides of openings, skirting board to both sides",27/10/2021,0000472614,650.00,Revenue,PDP PROPERTY SERVICES LTD,0
South Ribble Borough Council,http://statistics.data.gov.uk/id/local-authority/30UE,Community Development,Professional Fees,4510,"Activities for 60 children for 8 days, 16/8 to 19/8 and 23/8 to 26/8 as discussed and agreed for the HAF project",27/10/2021,0000472831,"6,720.00",Revenue,Penwortham Boxing Club CIC,0
South Ribble Borough Council,http://statistics.data.gov.uk/id/local-authority/30UE,Community Development,Miscellaneous Expenses,4851,Grant for Covid Vulnerable/Re-socialisation project,20/10/2021,0000472617,"1,000.00",Revenue,PENWORTHAM TOWN COUNCIL,0
South Ribble Borough Council,http://statistics.data.gov.uk/id/local-authority/30UE,Economic Development,Miscellaneous Expenses,4851,Provision of PA system and acts for A Taste of Leyland (25 Sept 2021),06/10/2021,0000472279,350.00,Revenue,Philip Robert Ireland,0
South Ribble Borough Council,http://statistics.data.gov.uk/id/local-authority/30UE,Recreation & Sport,Rental,4012,"2021 / 22 annual contract for Bamber Bridge leisure Centre, Sanitary bins x 6, air stream old unit hand dryers x 10, nappy bins x 4",20/10/2021,0000472589,376.02,Revenue,PHS GROUP PLC,0
South Ribble Borough Council,http://statistics.data.gov.uk/id/local-authority/30UE,Recreation & Sport,Rental,4012,"2021 / 22 annual contract for Bamber Bridge leisure Centre for Sanitary bins x 6, air stream old unit hand dryers x 10 & nappy bins x 4",20/10/2021,0000472603,326.54,Revenue,PHS GROUP PLC,0
South Ribble Borough Council,http://statistics.data.gov.uk/id/local-authority/30UE,Recreation & Sport,Rental,4012,"2021 / 22 annual contract for Leyland Leisure Centre for Sanitary bins x 7, air stream old unit hand dryers x 4 & nappy bins x 2",20/10/2021,0000472606,391.60,Revenue,PHS GROUP PLC,0
South Ribble Borough Council,http://statistics.data.gov.uk/id/local-authority/30UE,Recreation & Sport,Rental,4012,"2021 / 22 annual contract for Bamber Bridge leisure Centre for Sanitary bins x 6, air stream old unit hand dryers x 10 & nappy bins x 4",20/10/2021,0000472612,326.97,Revenue,PHS GROUP PLC,0
South Ribble Borough Council,http://statistics.data.gov.uk/id/local-authority/30UE,Recreation & Sport,Rental,4012,"2021 / 22 annual contract for Leyland Leisure Centre for Sanitary bins x 7, air stream old unit hand dryers x 4 & nappy bins x 2",20/10/2021,0000472613,266.59,Revenue,PHS GROUP PLC,0
South Ribble Borough Council,http://statistics.data.gov.uk/id/local-authority/30UE,Central Support Services,Rental,4012,"2021 / 2022 annual contract for the provision of sanitary services to Moss Side Depot, 81 Bison Place, Leyland as per your ref 105797",29/10/2021,0000472691,410.88,Revenue,PHS GROUP PLC,0
South Ribble Borough Council,http://statistics.data.gov.uk/id/local-authority/30UE,Central Support Services,Agency Staff,1121,Planning Enforcement Services,13/10/2021,0000472302,"1,444.00",Revenue,Planning Control & PACE Solutions,0
South Ribble Borough Council,http://statistics.data.gov.uk/id/local-authority/30UE,Central Support Services,Agency Staff,1121,Planning Enforcement Services,20/10/2021,0000472498,"1,165.85",Revenue,Planning Control & PACE Solutions,0
South Ribble Borough Council,http://statistics.data.gov.uk/id/local-authority/30UE,Central Support Services,Agency Staff,1121,Planning Enforcement Services,27/10/2021,0000472791,"1,108.45",Revenue,Planning Control & PACE Solutions,0
South Ribble Borough Council,http://statistics.data.gov.uk/id/local-authority/30UE,Open Spaces,GM Refurbishment,4657,Silver Etch Frosted Signage for Hurst Grange Coach House,20/10/2021,0000472513,442.94,Revenue,Poppy Signs Ltd,0
South Ribble Borough Council,http://statistics.data.gov.uk/id/local-authority/30UE,Open Spaces,Materials General,4040,SRBC Logo banners and boards,20/10/2021,0000472516,545.10,Revenue,Poppy Signs Ltd,0
South Ribble Borough Council,http://statistics.data.gov.uk/id/local-authority/30UE,Open Spaces,GM Refurbishment,4657,various mesh banners for playgrounds,29/10/2021,0000472584,606.60,Revenue,Poppy Signs Ltd,0
South Ribble Borough Council,http://statistics.data.gov.uk/id/local-authority/30UE,Central Support Services,Paper Bulk,4133,"Premier Paper supplies 2021-31/03/2022, Please quote this reference on all future invoices",29/10/2021,0000472140,319.28,Revenue,PREMIER PAPER GROUP LTD,0
South Ribble Borough Council,http://statistics.data.gov.uk/id/local-authority/30UE,Culture & Heritage,Operational Equip & Tools,4010,"Archive Box - Buffered 381mm x 305mm x 254mm x1, Photo Scale Set 145-3000 x1, Buffered Acid-free Tissue Paper 16gsm 762 x 1016mm",06/10/2021,0000472252,389.05,Revenue,Preservation Equipment Ltd,0
South Ribble Borough Council,http://statistics.data.gov.uk/id/local-authority/30UE,Culture & Heritage,Operational Equip & Tools,4010,"Museum Vac 800 watt model with variable controller x1, Delivery (UK Mainland Shipping - Standard Parcel): 9.95",20/10/2021,0000472527,304.95,Revenue,Preservation Equipment Ltd,0
South Ribble Borough Council,http://statistics.data.gov.uk/id/local-authority/30UE,Corporate Management,Temporary Accommodation,5311,"Purple Roomz covid provision  placements to 31.1.2021, room costs 70415, security cists 15655",20/10/2021,0000466893,"70,415.00",Revenue,PRESTON CITY COUNCIL,0
South Ribble Borough Council,http://statistics.data.gov.uk/id/local-authority/30UE,Corporate Management,Temporary Accommodation,5311,security costs,20/10/2021,0000466893,"15,655.00",Revenue,PRESTON CITY COUNCIL,0
South Ribble Borough Council,http://statistics.data.gov.uk/id/local-authority/30UE,Corporate Management,Temporary Accommodation,5311,"Whitburn House Hotel and Claremont Hotel, covid provision placments to 31.1.2021",20/10/2021,0000466922,"28,150.00",Revenue,PRESTON CITY COUNCIL,0
South Ribble Borough Council,http://statistics.data.gov.uk/id/local-authority/30UE,Economic Development,Contributions to Other Bodies,4730,To provide community transports services in South Ribble throughout the pandemic. Trips for essential shopping and medical appointments.,20/10/2021,0000472619,"7,500.00",Revenue,Preston Community Transport,0
South Ribble Borough Council,http://statistics.data.gov.uk/id/local-authority/30UE,Central Support Services,Materials General,4040,"2 x tyres, RV14DTZ, JFC17370",20/10/2021,0000472483,568.00,Revenue,PRESTON TYRE SPECIALISTS,0
South Ribble Borough Council,http://statistics.data.gov.uk/id/local-authority/30UE,Elections,Polling Card Costs,4423,BBE BY-ELECTION - POLL CARD POSTAGE (QUANTITY 3614),27/10/2021,0000472766,"1,727.49",Revenue,PRINT IMAGE FACILITIES LLP,0
South Ribble Borough Council,http://statistics.data.gov.uk/id/local-authority/30UE,Elections,Contract Printing,4127,ANNUAL CANVASS 2021: PRINTING OF STAGE 2 CANVASS COMMUNICATIONS & ENVELOPES (ON ORDER ACKNOWLEDGEMENT),13/10/2021,0000472362,"1,237.99",Revenue,PRINT IMAGE NETWORK LTD,0
South Ribble Borough Council,http://statistics.data.gov.uk/id/local-authority/30UE,Capital,Cap Contract Payment,C230,Next Step Properties Match Funding ADDRESS REDACTED,20/10/2021,0000472506,"35,000.00",Revenue,PROGRESS HOUSING GRP ref:DNSOU001,0
South Ribble Borough Council,http://statistics.data.gov.uk/id/local-authority/30UE,Capital,Cap Contract Payment,C230,Next Steps Properties Match Funding ADDRESS REDACTED,20/10/2021,0000472507,"35,000.00",Revenue,PROGRESS HOUSING GRP ref:DNSOU001,0
South Ribble Borough Council,http://statistics.data.gov.uk/id/local-authority/30UE,Homelessness,Other Fees,4520,21/22 Annual Interim Management Fees,27/10/2021,0000472680,"9,859.20",Revenue,PROGRESS HOUSING GRP ref:DNSOU001,0
South Ribble Borough Council,http://statistics.data.gov.uk/id/local-authority/30UE,Central Support Services,External Contractors Charges,4570,System rental and Communications Charge - 60 vehicles for 3 months from 1.10.21 - 31.12.21,20/10/2021,0000472469,"2,070.00",Revenue,Quartix,0
South Ribble Borough Council,http://statistics.data.gov.uk/id/local-authority/30UE,Capital,Cap Contract Payment,C230,Survey and report as per quote Survey and report as per quote and invoice number 4686 - 21 as per NAME REDACTED,29/10/2021,0000472921,320.00,Revenue,Rachel Hacking Ecology,0
South Ribble Borough Council,http://statistics.data.gov.uk/id/local-authority/30UE,Open Spaces,Hiring Expenses,3212,Hire of 1 x 8T excavator and shutters at 350.00 per week for 3 weeks from Monday 26th July 2021,06/10/2021,0000471781,350.00,Revenue,Readyplant Limited,0
South Ribble Borough Council,http://statistics.data.gov.uk/id/local-authority/30UE,Open Spaces,Hiring Expenses,3212,Hire of 1 x 6T dumper at 130.00 per week for 3 weeks from Monday 26th July 2021,06/10/2021,0000471781,130.00,Revenue,Readyplant Limited,0
South Ribble Borough Council,http://statistics.data.gov.uk/id/local-authority/30UE,Open Spaces,Hiring Expenses,3212,"Collection/Delivery at 50 each way to Haig Avenue, Leyland",06/10/2021,0000471781,50.00,Revenue,Readyplant Limited,0
South Ribble Borough Council,http://statistics.data.gov.uk/id/local-authority/30UE,Open Spaces,Hiring Expenses,3212,Fuel Charge,06/10/2021,0000471781,45.00,Revenue,Readyplant Limited,0
South Ribble Borough Council,http://statistics.data.gov.uk/id/local-authority/30UE,Open Spaces,Hiring Expenses,3212,Hire of 1 x 8T excavator and shutters at 350.00 per week for 3 weeks from Monday 26th July 2021,13/10/2021,0000471782,350.00,Revenue,Readyplant Limited,0
South Ribble Borough Council,http://statistics.data.gov.uk/id/local-authority/30UE,Open Spaces,Hiring Expenses,3212,Hire of 1 x 6T dumper at 130.00 per week for 3 weeks from Monday 26th July 2021,13/10/2021,0000471782,130.00,Revenue,Readyplant Limited,0
South Ribble Borough Council,http://statistics.data.gov.uk/id/local-authority/30UE,Open Spaces,Hiring Expenses,3212,Hire of a 1 x 8T excavator and shutters at 350.00 per week for 3 weeks,13/10/2021,0000471782,"1,120.00",Revenue,Readyplant Limited,0
South Ribble Borough Council,http://statistics.data.gov.uk/id/local-authority/30UE,Open Spaces,Hiring Expenses,3212,Hire of 1x 6T dumper at 130.00 per week for 3 weeks,13/10/2021,0000471782,416.00,Revenue,Readyplant Limited,0
South Ribble Borough Council,http://statistics.data.gov.uk/id/local-authority/30UE,Open Spaces,Hiring Expenses,3212,"hire of a 3 tonne excavator, hire of 3 tonne dumper, for 9/9/21 for 1 day delivered to Hurst Grange park",06/10/2021,0000471940,336.25,Revenue,Readyplant Limited,0
South Ribble Borough Council,http://statistics.data.gov.uk/id/local-authority/30UE,Open Spaces,Hiring Expenses,3212,fuel charge,06/10/2021,0000471940,27.00,Revenue,Readyplant Limited,0
South Ribble Borough Council,http://statistics.data.gov.uk/id/local-authority/30UE,Parking Services,Maintenance of Grounds,2040,Supply 60 tonnes of MOT hardcore 50mm to dust for the car park at Penwortham Holme and fit a new five bar gate as per Quotation.,06/10/2021,0000471848,"3,500.00",Revenue,RED ROSE BUILDING MAINTENANCE,0
South Ribble Borough Council,http://statistics.data.gov.uk/id/local-authority/30UE,Central Support Services,Reactive Repair & Maintenance,2020,To Attend Civic Centre to jet and clear all ladder drains at the civic centre. As per NAME REDACTED,29/10/2021,0000472658,300.00,Revenue,RED ROSE BUILDING MAINTENANCE,0
South Ribble Borough Council,http://statistics.data.gov.uk/id/local-authority/30UE,Central Support Services,Reactive Repair & Maintenance,2020,Flagging at the Civic Center. Following NAME REDACTED inspection. 250 to cover the additional work.,29/10/2021,0000472693,460.00,Revenue,RED ROSE BUILDING MAINTENANCE,0
South Ribble Borough Council,http://statistics.data.gov.uk/id/local-authority/30UE,Central Support Services,Reactive Repair & Maintenance,2020,Additional flagging required at the civic centre as agreed with facilities management,29/10/2021,0000472693,500.00,Revenue,RED ROSE BUILDING MAINTENANCE,0
South Ribble Borough Council,http://statistics.data.gov.uk/id/local-authority/30UE,Central Support Services,Reactive Repair & Maintenance,2020,Materials,29/10/2021,0000472693,152.00,Revenue,RED ROSE BUILDING MAINTENANCE,0
South Ribble Borough Council,http://statistics.data.gov.uk/id/local-authority/30UE,Economic Development,Economic Regeneration,485A,LEY_C11 35 square foot self storage unit.,27/10/2021,0000472590,560.00,Revenue,Red Rose Self Storage Limited,0
South Ribble Borough Council,http://statistics.data.gov.uk/id/local-authority/30UE,Central Support Services,Materials General,4040,"1 set of slide blocks, YA19NGN, JFC17430",27/10/2021,0000472730,525.67,Revenue,Refuse Vehicle Parts,0
South Ribble Borough Council,http://statistics.data.gov.uk/id/local-authority/30UE,Community Development,Miscellaneous Expenses,4851,Grant of 1000 towards Covid Vulnerable/Re-socialisation project,20/10/2021,0000472562,"1,000.00",Revenue,Royal British Legion Middleforth LTD,0
South Ribble Borough Council,http://statistics.data.gov.uk/id/local-authority/30UE,Capital,Cap Contract Payment,C230,"Mckenzie Arms  Works - PCSA appointment as per NAME REDACTED request, Value - 35,816",06/10/2021,0000471394,"28,173.00",Revenue,RP Tyson Construction Ltd,0
South Ribble Borough Council,http://statistics.data.gov.uk/id/local-authority/30UE,Capital,Cap Contract Payment,C230,"Mckenzie Arms  Works - PCSA appointment as per NAME REDACTED request, Value - 35,816",20/10/2021,0000472476,"5,220.00",Revenue,RP Tyson Construction Ltd,0
South Ribble Borough Council,http://statistics.data.gov.uk/id/local-authority/30UE,Central Support Services,External Contractors Charges,4570,Spec Repair PJ62 UCG JFC17256,13/10/2021,0000472325,"2,320.00",Revenue,RTS Muni,0
South Ribble Borough Council,http://statistics.data.gov.uk/id/local-authority/30UE,Central Support Services,Materials General,4040,1x 1100ltr Energize - Premium Hi Foaming TFR with Wax,29/10/2021,0000472937,911.15,Revenue,Saanro International Ltd,0
South Ribble Borough Council,http://statistics.data.gov.uk/id/local-authority/30UE,Capital,Cap Contract Payment,C230,"Cost of Consultancy Support on project RIBA Stage 1-2 for extra care project, West Paddock.",20/10/2021,0000471826,"2,280.00",Revenue,SDA Consulting LLP,0
South Ribble Borough Council,http://statistics.data.gov.uk/id/local-authority/30UE,Capital,Cap Contract Payment,C230,"Cost of Consultancy Support on project RIBA Stage 1-2 for extra care project, West Paddock.",20/10/2021,0000472436,880.00,Revenue,SDA Consulting LLP,0
South Ribble Borough Council,http://statistics.data.gov.uk/id/local-authority/30UE,Democratic Represent and  Mgnt,Corp Subs to Professional Bodies,4720,"North West Legal Consortium, 2021 /2022 Subscriptions",27/10/2021,0000472659,500.00,Revenue,SEFTON M B COUNCIL,0
South Ribble Borough Council,http://statistics.data.gov.uk/id/local-authority/30UE,Central Support Services,Agency Staff,1121,COST OF ENGAGING AGENCY LOCUM SOLICITOR FOR 4 DAYS PER WEEK FROM 7 SEPTEMBER 2021 UNTIL CHRISTMAS 2021,06/10/2021,0000472169,"1,690.62",Revenue,SELLICK PARTNERSHIP LTD,0
South Ribble Borough Council,http://statistics.data.gov.uk/id/local-authority/30UE,Central Support Services,Agency Staff,1121,COST OF ENGAGING AGENCY LOCUM SOLICITOR FOR 4 DAYS PER WEEK FROM 7 SEPTEMBER 2021 UNTIL CHRISTMAS 2021,13/10/2021,0000472371,"1,724.25",Revenue,SELLICK PARTNERSHIP LTD,0
South Ribble Borough Council,http://statistics.data.gov.uk/id/local-authority/30UE,Central Support Services,Agency Staff,1121,COST OF ENGAGING AGENCY LOCUM SOLICITOR FOR 4 DAYS PER WEEK FROM 7 SEPTEMBER 2021 UNTIL CHRISTMAS 2021,27/10/2021,0000472661,"1,800.06",Revenue,SELLICK PARTNERSHIP LTD,0
South Ribble Borough Council,http://statistics.data.gov.uk/id/local-authority/30UE,Central Support Services,Agency Staff,1121,COST OF ENGAGING AGENCY LOCUM SOLICITOR FOR 4 DAYS PER WEEK FROM 7 SEPTEMBER 2021 UNTIL CHRISTMAS 2021,29/10/2021,0000472698,"1,881.00",Revenue,SELLICK PARTNERSHIP LTD,0
South Ribble Borough Council,http://statistics.data.gov.uk/id/local-authority/30UE,Central Support Services,Other Fees,4520,Shredding of Confidential Waste 2021/22,29/10/2021,0000471485,492.83,Revenue,SHRED-IT LTD,0
South Ribble Borough Council,http://statistics.data.gov.uk/id/local-authority/30UE,Recreation & Sport,Publicity & Promotion,4842,"10 x Hi Vis Bomber Jackets @ 21.90 Each, 11 x Executive Hi Vis Vest @ 8.90 Each, Total Price - 316.90",06/10/2021,0000472305,316.90,Revenue,SMART IMAGE WORKWEAR,0
South Ribble Borough Council,http://statistics.data.gov.uk/id/local-authority/30UE,Central Support Services,Clothing and Uniforms,4410,POLO SHIRT - SHORT SLEEVED NAVY - SMALL c/w SRBC LOGO FRONT LEFT BREAST HS WHITE,13/10/2021,0000471931,21.50,Revenue,SMI Int Group Ltd,0
South Ribble Borough Council,http://statistics.data.gov.uk/id/local-authority/30UE,Central Support Services,Clothing and Uniforms,4410,POLO SHIRT - SHORT SLEEVED NAVY - MEDIUM c/w SRBC LOGO FRONT LEFT BREAST HS WHITE,13/10/2021,0000471931,21.50,Revenue,SMI Int Group Ltd,0
South Ribble Borough Council,http://statistics.data.gov.uk/id/local-authority/30UE,Central Support Services,Clothing and Uniforms,4410,POLO SHIRT - SHORT SLEEVED NAVY - LARGE c/w SRBC LOGO FRONT LEFT BREAST HS WHITE RIBB001-OWW-4004-NV-S2,13/10/2021,0000471931,21.50,Revenue,SMI Int Group Ltd,0
South Ribble Borough Council,http://statistics.data.gov.uk/id/local-authority/30UE,Central Support Services,Clothing and Uniforms,4410,POLO SHIRT - SHORT SLEEVED NAVY - EXTRA LARGE c/w SRBC LOGO FRONT LEFT BREAST HS WHITE  RIBB001-OWW-4004-NV-S2,13/10/2021,0000471931,21.50,Revenue,SMI Int Group Ltd,0
South Ribble Borough Council,http://statistics.data.gov.uk/id/local-authority/30UE,Central Support Services,Clothing and Uniforms,4410,POLO SHIRT NAVY - XX LARGE c/w SRBC LOGO FRONT LEFT BREAST HS WHITE  RIBB001-OWW-4004-NV-S2,13/10/2021,0000471931,21.50,Revenue,SMI Int Group Ltd,0
South Ribble Borough Council,http://statistics.data.gov.uk/id/local-authority/30UE,Central Support Services,Clothing and Uniforms,4410,POLO SHIRT NAVY - XXX LARGE c/w SRBC LOGO FRONT LEFT BREAST HS WHITE RIBB001-OWW-4004-NV-S2,13/10/2021,0000471931,21.50,Revenue,SMI Int Group Ltd,0
South Ribble Borough Council,http://statistics.data.gov.uk/id/local-authority/30UE,Central Support Services,Clothing and Uniforms,4410,SWEATSHIRT NAVY - SMALL c/w SRBC LOGO FRONT LEFT BREAST HS WHITE RIBB001-OWW-4007-NV-S2,13/10/2021,0000471931,30.00,Revenue,SMI Int Group Ltd,0
South Ribble Borough Council,http://statistics.data.gov.uk/id/local-authority/30UE,Central Support Services,Clothing and Uniforms,4410,SWEATSHIRT NAVY - MEDIUM c/w SRBC LOGO FRONT LEFT BREAST HS WHITE RIBB001-OWW-4007-NV-S2,13/10/2021,0000471931,30.00,Revenue,SMI Int Group Ltd,0
South Ribble Borough Council,http://statistics.data.gov.uk/id/local-authority/30UE,Central Support Services,Clothing and Uniforms,4410,SWEATSHIRT NAVY - LARGE c/w SRBC LOGO FRONT LEFT BREAST HS WHITE RIBB001-OWW-4007-NV-S2,13/10/2021,0000471931,30.00,Revenue,SMI Int Group Ltd,0
South Ribble Borough Council,http://statistics.data.gov.uk/id/local-authority/30UE,Central Support Services,Clothing and Uniforms,4410,SWEATSHIRT NAVY - EXTRA LARGE c/w SRBC LOGO FRONT LEFT BREAST HS WHITE  RIBB001-OWW-4007-NV-S2,13/10/2021,0000471931,30.00,Revenue,SMI Int Group Ltd,0
South Ribble Borough Council,http://statistics.data.gov.uk/id/local-authority/30UE,Central Support Services,Clothing and Uniforms,4410,SWEATSHIRT NAVY - XXLARGE c/w SRBC LOGO FRONT LEFT BREAST HS WHITE  RIBB001-OWW-4007-NV-S2,13/10/2021,0000471931,30.00,Revenue,SMI Int Group Ltd,0
South Ribble Borough Council,http://statistics.data.gov.uk/id/local-authority/30UE,Community Safety Services,Miscellaneous Expenses,4851,100 Camera Door Bells for the Police Community Project @ 50.00 each - per NAME REDACTED.,27/10/2021,0000472442,"5,000.00",Revenue,SOLON SECURITY LTD,0
South Ribble Borough Council,http://statistics.data.gov.uk/id/local-authority/30UE,Surplus or Deficit on Trading,Reactive Repair & Maintenance,2020,"Please undertake deep clean 6x sports pavilions, Worden park as agreed with facilities management.",06/10/2021,0000472267,580.00,Revenue,South Ribble Cleaning Services T/A CoxheadCleaning,0
South Ribble Borough Council,http://statistics.data.gov.uk/id/local-authority/30UE,Short Term Creditors,Amount Paid,0030,monthly deductions,06/10/2021,0000471523,"1,444.14",Revenue,SOUTH RIBBLE LABOUR PARTY LOCAL GOVERNM,0
South Ribble Borough Council,http://statistics.data.gov.uk/id/local-authority/30UE,Short Term Creditors,Amount Paid,0030,monthly deds,20/10/2021,0000472547,"1,415.99",Revenue,SOUTH RIBBLE LABOUR PARTY LOCAL GOVERNM,0
South Ribble Borough Council,http://statistics.data.gov.uk/id/local-authority/30UE,Short Term Creditors,Amount Paid,0030,Monthly Deductions from Payroll,27/10/2021,0000472888,"1,403.92",Revenue,SOUTH RIBBLE LABOUR PARTY LOCAL GOVERNM,0
South Ribble Borough Council,http://statistics.data.gov.uk/id/local-authority/30UE,Central Support Services,Hiring Expenses,3212,Hire of Dennis Eagle Vehicle - VX13LSZ for 5 weeks 30.08.21-30.09.21,27/10/2021,0000472725,"3,750.00",Revenue,Southfield RCV Services Limited,0
South Ribble Borough Council,http://statistics.data.gov.uk/id/local-authority/30UE,Central Support Services,Hiring Expenses,3212,Hire of RCV VN12 LBY for 1 week (commencing 16th September),27/10/2021,0000472726,750.00,Revenue,Southfield RCV Services Limited,0
South Ribble Borough Council,http://statistics.data.gov.uk/id/local-authority/30UE,Central Support Services,Hiring Expenses,3212,"Hire of Dennis Eagle RCV, VX13 LSZ, Continuation of hire - 1.10.21 - 31.10.21, Recharge to CHORLEY FCC",27/10/2021,0000472727,"3,000.00",Revenue,Southfield RCV Services Limited,0
South Ribble Borough Council,http://statistics.data.gov.uk/id/local-authority/30UE,Open Spaces,Hiring Expenses,3212,Hire of RCV VN14 LKK for 1 week (commencing 8th October 2021),27/10/2021,0000472807,750.00,Revenue,Southfield RCV Services Limited,0
South Ribble Borough Council,http://statistics.data.gov.uk/id/local-authority/30UE,Central Support Services,Materials General,4040,"4 x outer deck guard rubbers- BIN 1049, 6 x rollers- BIN1268, 4 x Rear LED Lamps- BIN1081",06/10/2021,0000471864,471.00,Revenue,SPALDINGS,0
South Ribble Borough Council,http://statistics.data.gov.uk/id/local-authority/30UE,Open Spaces,Materials General,4040,3 Ton (120 bags) of 70/30 top dressing at 134.50 per ton,20/10/2021,0000472487,403.20,Revenue,Spunhill Limited,0
South Ribble Borough Council,http://statistics.data.gov.uk/id/local-authority/30UE,Open Spaces,Materials General,4040,60x 5L bottles of Mentor at 26.50 per bottle,20/10/2021,0000472488,"1,590.00",Revenue,Spunhill Limited,0
South Ribble Borough Council,http://statistics.data.gov.uk/id/local-authority/30UE,Community Development,Operational Equip & Tools,4010,"Defibsafe 2 Secure Outdoor Cabinet Locked and Heated, 14 @ 440 + VAT",06/10/2021,0000472245,"6,160.00",Revenue,SR8 Group Ltd,0
South Ribble Borough Council,http://statistics.data.gov.uk/id/local-authority/30UE,Short Term Creditors,Amount Paid,0030,monthly deductions from pyroll,06/10/2021,0000471527,407.96,Revenue,ST CATHERINES HOSPICE PROMOTIONS LTD,0
South Ribble Borough Council,http://statistics.data.gov.uk/id/local-authority/30UE,Short Term Creditors,Amount Paid,0030,monthly deds,20/10/2021,0000472544,407.96,Revenue,ST CATHERINES HOSPICE PROMOTIONS LTD,0
South Ribble Borough Council,http://statistics.data.gov.uk/id/local-authority/30UE,Short Term Creditors,Amount Paid,0030,Monthly Deductions from Payroll,27/10/2021,0000472885,403.62,Revenue,ST CATHERINES HOSPICE PROMOTIONS LTD,0
South Ribble Borough Council,http://statistics.data.gov.uk/id/local-authority/30UE,Service Management & Support,Gas Oil,3134,1500 litres of gas oil at 61.21ppl into tank 2,20/10/2021,0000472446,990.54,Revenue,Standard Fuel Oils LtdMain,0
South Ribble Borough Council,http://statistics.data.gov.uk/id/local-authority/30UE,Service Management & Support,Diesel Fuel,3132,"17000 litres diesel @ 106.47ppl into the feeder tank at Unit 81 Bison Place, Moss Side - Key for cabinet available",20/10/2021,0000472447,"18,927.80",Revenue,Standard Fuel Oils LtdMain,0
South Ribble Borough Council,http://statistics.data.gov.uk/id/local-authority/30UE,Service Management & Support,Diesel Fuel,3132,"17000 litres diesel @ 111.34ppl into the feeder tank at Unit 81 Bison Place, Moss Side - key for cabinet available",27/10/2021,0000472620,"19,436.89",Revenue,Standard Fuel Oils LtdMain,0
South Ribble Borough Council,http://statistics.data.gov.uk/id/local-authority/30UE,Service Management & Support,Gas Oil,3134,1500 litres of gas oil at 70.85ppl into tank 2,29/10/2021,0000472941,"1,043.62",Revenue,Standard Fuel Oils LtdMain,0
South Ribble Borough Council,http://statistics.data.gov.uk/id/local-authority/30UE,Capital,Capital Grant,C570,DFG WORK TO SUPPLY AND INSTALL A STAIRLIFT  AT ADDRESS REDACTED AS PER QUOTE SUPPLIED OF 6773.00,27/10/2021,0000472640,"6,673.00",Revenue,Stannah Lift Services Ltd,0
South Ribble Borough Council,http://statistics.data.gov.uk/id/local-authority/30UE,Central Support Services,Operational Equip & Tools,4010,call out to repair ramp,06/10/2021,0000472071,287.75,Revenue,Stertil UK Limited,0
South Ribble Borough Council,http://statistics.data.gov.uk/id/local-authority/30UE,Recreation & Sport,Planned Annual Repair & Maintenance,2021,2021 / 2022 annual contract for the emergency light maintenance to Penwortham Leisure Centre,29/10/2021,0000472557,270.00,Revenue,Steve Green Electrical LTD,0
South Ribble Borough Council,http://statistics.data.gov.uk/id/local-authority/30UE,Recreation & Sport,Planned Annual Repair & Maintenance,2021,2021 / 2022 annual contract for the emergency light maintenance to Bamber Bridge Leisure Centre,29/10/2021,0000472558,270.00,Revenue,Steve Green Electrical LTD,0
South Ribble Borough Council,http://statistics.data.gov.uk/id/local-authority/30UE,Recreation & Sport,Planned Annual Repair & Maintenance,2021,2021 / 2022 annual contract for the emergency light maintenance to South Ribble Tennis Centre,29/10/2021,0000472918,270.00,Revenue,Steve Green Electrical LTD,0
South Ribble Borough Council,http://statistics.data.gov.uk/id/local-authority/30UE,Recreation & Sport,Planned Annual Repair & Maintenance,2021,2021 / 2022 annual contract for the emergency light maintenance to Leyland Leisure Centre,29/10/2021,0000472932,330.00,Revenue,Steve Green Electrical LTD,0
South Ribble Borough Council,http://statistics.data.gov.uk/id/local-authority/30UE,Capital,Cap Contract Payment,C230,"Provision of Mechanical, Electrical and Plumbing Services to RIBA Stage 3 for the Leyland Town Deal Development",20/10/2021,0000472496,"2,390.00",Revenue,STEVEN A HUNT & ASSOCIATES LTD,0
South Ribble Borough Council,http://statistics.data.gov.uk/id/local-authority/30UE,Surplus or Deficit on Trading,Rents,2401,Rental fees from 25th March 2021 for ADDRESS REDACTED,20/10/2021,0000472503,"16,147.50",Revenue,STONEWELL PROPERTY COMPANY LTD (In Administration),0
South Ribble Borough Council,http://statistics.data.gov.uk/id/local-authority/30UE,Surplus or Deficit on Trading,Rents,2401,less ground rent,20/10/2021,0000472503,"-2,850.00",Revenue,STONEWELL PROPERTY COMPANY LTD (In Administration),0
South Ribble Borough Council,http://statistics.data.gov.uk/id/local-authority/30UE,Capital,Cap Contract Payment,C230,"Leyland Leisure Centre and Bamber Bridge Leisure Centre, Proposed architectural services, fees are based on the RIBA, per NAME REDACTED",20/10/2021,0000472411,"7,500.00",Revenue,studio-LADY-Ltd,0
South Ribble Borough Council,http://statistics.data.gov.uk/id/local-authority/30UE,Capital,Cap Contract Payment,C230,To produce 3D design proposals for Vernon Carus. As per NAME REDACTED request,20/10/2021,0000472482,"2,800.00",Revenue,studio-LADY-Ltd,0
South Ribble Borough Council,http://statistics.data.gov.uk/id/local-authority/30UE,Democratic Represent and  Mgnt,External Catering Charges,4575,Lunch boxes for full council 21st Sept,13/10/2021,0000472278,329.40,Revenue,Style Catering,0
South Ribble Borough Council,http://statistics.data.gov.uk/id/local-authority/30UE,Open Spaces,GM Refurbishment,4657,1 x pull up ramp rope,06/10/2021,0000471997,79.79,Revenue,SUTCLIFFE PLAY LTD,0
South Ribble Borough Council,http://statistics.data.gov.uk/id/local-authority/30UE,Open Spaces,GM Refurbishment,4657,1 x 2M High Vertical Climbing Net,06/10/2021,0000471997,876.06,Revenue,SUTCLIFFE PLAY LTD,0
South Ribble Borough Council,http://statistics.data.gov.uk/id/local-authority/30UE,Open Spaces,GM Refurbishment,4657,1 x climb rope 1.5M,06/10/2021,0000471997,92.00,Revenue,SUTCLIFFE PLAY LTD,0
South Ribble Borough Council,http://statistics.data.gov.uk/id/local-authority/30UE,Open Spaces,GM Refurbishment,4657,Carriage,06/10/2021,0000471997,104.79,Revenue,SUTCLIFFE PLAY LTD,0
South Ribble Borough Council,http://statistics.data.gov.uk/id/local-authority/30UE,Economic Development,Reactive Repair & Maintenance,2020,Please attend Leyland Market and replace sensor and batteries on car park entrance as per QU006313 and NAME REDACTED,13/10/2021,0000472433,501.00,Revenue,THE AUTOMATIC DOOR COMPANY LTD,0
South Ribble Borough Council,http://statistics.data.gov.uk/id/local-authority/30UE,Open Spaces,Professional Fees,4510,"Tree hives upgrade and 1 year�s annual maintenance as per NAME REDACTED, Cost 3500",27/10/2021,0000472724,450.00,Revenue,The Bee centre,0
South Ribble Borough Council,http://statistics.data.gov.uk/id/local-authority/30UE,Community Development,Core Fund,4861,Contribution towards Penwortham Living Room Live 2021,20/10/2021,0000472505,500.00,Revenue,The Creative Network,0
South Ribble Borough Council,http://statistics.data.gov.uk/id/local-authority/30UE,Community Development,Core Fund,4861,"Living Room Live for Longton Live 2021, taking place over the weekend of 9th and 10th July.",20/10/2021,0000472560,500.00,Revenue,The Creative Network,0
South Ribble Borough Council,http://statistics.data.gov.uk/id/local-authority/30UE,Central Support Services,Operational Equip & Tools,4010,Litter Picker- Ranger Max - LP3035-35'',13/10/2021,0000472458,523.20,Revenue,The Helping Hand Company,0
South Ribble Borough Council,http://statistics.data.gov.uk/id/local-authority/30UE,Central Support Services,Operational Equip & Tools,4010,LITTER PICKER - RANGER MAX LP3035 - 35'',29/10/2021,0000472702,575.40,Revenue,The Helping Hand Company,0
South Ribble Borough Council,http://statistics.data.gov.uk/id/local-authority/30UE,Central Support Services,Individual Subs Prof. Bodies,1741,Practising certificates for the 7 solicitors: NAMES REDACTED,27/10/2021,0000472812,"1,924.00",Revenue,THE LAW SOCIETY,0
South Ribble Borough Council,http://statistics.data.gov.uk/id/local-authority/30UE,Central Support Services,Agency Staff,1121,"For Agency Staff, NAME REDACTED Jan 2022  7th Jan 2022",13/10/2021,0000472320,"1,400.00",Revenue,The Oyster Partnership,0
South Ribble Borough Council,http://statistics.data.gov.uk/id/local-authority/30UE,Central Support Services,Agency Staff,1121,"For Agency Staff, NAME REDACTED Jan 2022  7th Jan 2022",27/10/2021,0000472566,"1,400.00",Revenue,The Oyster Partnership,0
South Ribble Borough Council,http://statistics.data.gov.uk/id/local-authority/30UE,Central Support Services,Agency Staff,1121,"For Agency Staff, NAME REDACTED Jan 2022  7th Jan 2022",29/10/2021,0000472700,"1,400.00",Revenue,The Oyster Partnership,0
South Ribble Borough Council,http://statistics.data.gov.uk/id/local-authority/30UE,Central Support Services,Occupational Health,1408,6 sessions of counselling for NAME REDACTED as agreed,13/10/2021,0000471357,210.00,Revenue,THE THERAPY COMPANY,0
South Ribble Borough Council,http://statistics.data.gov.uk/id/local-authority/30UE,Central Support Services,Occupational Health,1408,6 SESSIONS OF THERAPY FOR NAME REDACTED AS AGREED,13/10/2021,0000471357,70.00,Revenue,THE THERAPY COMPANY,0
South Ribble Borough Council,http://statistics.data.gov.uk/id/local-authority/30UE,Central Support Services,Occupational Health,1408,6 SESSIONS OF THERAPY FOR NAME REDACTED AS AGREED,13/10/2021,0000472261,420.00,Revenue,THE THERAPY COMPANY,0
South Ribble Borough Council,http://statistics.data.gov.uk/id/local-authority/30UE,Central Support Services,Gas,2304,28/6 to 23/9/21,06/10/2021,0000472167,360.27,Revenue,Total Gas & power Ltd,0
South Ribble Borough Council,http://statistics.data.gov.uk/id/local-authority/30UE,Open Spaces,Gas,2304,01/09/21 - 30/09/21,20/10/2021,0000472521,674.13,Revenue,Total Gas & power Ltd,0
South Ribble Borough Council,http://statistics.data.gov.uk/id/local-authority/30UE,Recreation & Sport,Electricity,2303,credit to cancel 237692867/21,20/10/2021,0000472526,"-4,927.60",Revenue,Total Gas & power Ltd,0
South Ribble Borough Council,http://statistics.data.gov.uk/id/local-authority/30UE,Recreation & Sport,Electricity,2303,01/04/21 - 27/04/21,20/10/2021,0000472526,"5,591.75",Revenue,Total Gas & power Ltd,0
South Ribble Borough Council,http://statistics.data.gov.uk/id/local-authority/30UE,Surplus or Deficit on Trading,Electricity,2303,23/6 to 3/10/21,29/10/2021,0000472593,264.27,Revenue,Total Gas & power Ltd,0
South Ribble Borough Council,http://statistics.data.gov.uk/id/local-authority/30UE,Central Support Services,Electricity,2303,1/9 to 30/9/21,29/10/2021,0000472594,"2,958.35",Revenue,Total Gas & power Ltd,0
South Ribble Borough Council,http://statistics.data.gov.uk/id/local-authority/30UE,Central Support Services,Electricity,2303,1/9 to 30/9/21,29/10/2021,0000472597,"2,459.96",Revenue,Total Gas & power Ltd,0
South Ribble Borough Council,http://statistics.data.gov.uk/id/local-authority/30UE,Economic Development,Electricity,2303,1/9 to 30/9/21,29/10/2021,0000472599,"1,394.01",Revenue,Total Gas & power Ltd,0
South Ribble Borough Council,http://statistics.data.gov.uk/id/local-authority/30UE,Open Spaces,External Contractors Charges,4570,Tree felling at Longmeaneygate Allotment at price agreed with NAME REDACTED,29/10/2021,0000472896,"4,140.00",Revenue,Trunks Tree Care Ltd,0
South Ribble Borough Council,http://statistics.data.gov.uk/id/local-authority/30UE,Capital,Cap Contract Payment,C230,Polypropylene Sand Bags DBLSAND/P,29/10/2021,0000472581,300.00,Revenue,Tudor (UK) Ltd t/a Tudor Environmental,0
South Ribble Borough Council,http://statistics.data.gov.uk/id/local-authority/30UE,Central Support Services,UK Healthcare,1710,,13/10/2021,0000471625,"1,510.34",Revenue,UK healthcare (BDHSC),0
South Ribble Borough Council,http://statistics.data.gov.uk/id/local-authority/30UE,Economic Development,Professional Fees,4510,NAME REDACTED TO PERFORM AT MUSIC IN THE PARK 2022,13/10/2021,0000472121,"3,500.00",Revenue,UK Media Events Ltd,0
South Ribble Borough Council,http://statistics.data.gov.uk/id/local-authority/30UE,Economic Development,Professional Fees,4510,NAME REDACTED TO PERFORM AT MUSIC IN THE PARK 2022,13/10/2021,0000472122,"13,000.00",Revenue,UK Media Events Ltd,0
South Ribble Borough Council,http://statistics.data.gov.uk/id/local-authority/30UE,Economic Development,Professional Fees,4510,NAME REDACTED TO PERFORM AT MUSIC IN THE PARK 2022,13/10/2021,0000472125,"8,250.00",Revenue,UK Media Events Ltd,0
South Ribble Borough Council,http://statistics.data.gov.uk/id/local-authority/30UE,Economic Development,Professional Fees,4510,NAME REDACTED TO PERFORM AT MUSIC IN THE PARK 2022,20/10/2021,0000472400,"7,000.00",Revenue,UK Media Events Ltd,0
South Ribble Borough Council,http://statistics.data.gov.uk/id/local-authority/30UE,Economic Development,Contributions to Other Bodies,4730,Grant to support delivery of Credit Union in South Ribble Year 1,06/10/2021,0000472274,"21,761.00",Revenue,Unify Credit Union Ltd,0
South Ribble Borough Council,http://statistics.data.gov.uk/id/local-authority/30UE,Community Development,Professional Fees,4510,"Delivery of sessions for the HAF project, 3 days, 16 17 18 August as agreed",13/10/2021,0000472244,"3,000.00",Revenue,Urban Pure Solutions,0
South Ribble Borough Council,http://statistics.data.gov.uk/id/local-authority/30UE,Democratic Represent and  Mgnt,Rental,4012,2021 / 2022 annual contract for the monthly rental of hot drinks machines at the civic centre including environmental charge.,20/10/2021,0000472397,591.98,Revenue,VENDING ENTERPRISES,0
South Ribble Borough Council,http://statistics.data.gov.uk/id/local-authority/30UE,Open Spaces,Plants Trees & Shrubs,4046,"Spring bedding plants and bulbs as per quotation, delivery week commencing Monday 4th October 2021, Contact NAME REDACTED",29/10/2021,0000472800,538.80,Revenue,Walkers Nurseries Chester Ltd,0
South Ribble Borough Council,http://statistics.data.gov.uk/id/local-authority/30UE,Open Spaces,GM Refurbishment,4657,"Update of M&E requirements, Hurst Grange Coach House, Penwortham",29/10/2021,0000472537,"1,153.75",Revenue,WALMSLEY ASSOCIATES,0
South Ribble Borough Council,http://statistics.data.gov.uk/id/local-authority/30UE,Capital,Cap Contract Payment,C230,"4 Visits by Electrical Engineer, Hurst Grange Park Penwortham",29/10/2021,0000472537,960.00,Revenue,WALMSLEY ASSOCIATES,0
South Ribble Borough Council,http://statistics.data.gov.uk/id/local-authority/30UE,Capital,Cap Contract Payment,C230,"4 Visit for Mechanical Engineer, Hurst Grange Park, Penwortham",29/10/2021,0000472537,960.00,Revenue,WALMSLEY ASSOCIATES,0
South Ribble Borough Council,http://statistics.data.gov.uk/id/local-authority/30UE,Open Spaces,Water Charges(Metered),2511,30/04/21 - 18/08/21,13/10/2021,0000471876,293.32,Revenue,WATER PLUS,0
South Ribble Borough Council,http://statistics.data.gov.uk/id/local-authority/30UE,Surplus or Deficit on Trading,Water Charges(Metered),2511,15/5 to 26/8/21,29/10/2021,0000471879,397.31,Revenue,WATER PLUS,0
South Ribble Borough Council,http://statistics.data.gov.uk/id/local-authority/30UE,Economic Development,Water Charges(Metered),2511,09/05/21 - 28/08/21,20/10/2021,0000471889,455.32,Revenue,WATER PLUS,0
South Ribble Borough Council,http://statistics.data.gov.uk/id/local-authority/30UE,Surplus or Deficit on Trading,Water Charges(Metered),2511,21/6 to 28/8/21,29/10/2021,0000471891,268.58,Revenue,WATER PLUS,0
South Ribble Borough Council,http://statistics.data.gov.uk/id/local-authority/30UE,Surplus or Deficit on Trading,Water Charges(Metered),2511,16/4 to 23/8/21,29/10/2021,0000472366,20.80,Revenue,WATER PLUS,0
South Ribble Borough Council,http://statistics.data.gov.uk/id/local-authority/30UE,Surplus or Deficit on Trading,Water Charges(Metered),2511,16/4 to 23/8/21,29/10/2021,0000472366,294.30,Revenue,WATER PLUS,0
South Ribble Borough Council,http://statistics.data.gov.uk/id/local-authority/30UE,Central Support Services,Water Charges(Metered),2511,27/04/21 - 15/08/21,13/10/2021,0000472391,"2,073.15",Revenue,WATER PLUS,0
South Ribble Borough Council,http://statistics.data.gov.uk/id/local-authority/30UE,Central Support Services,Water Charges(Metered),2511,28/08/21 - 28/09/21,13/10/2021,0000472392,"2,482.01",Revenue,WATER PLUS,0
South Ribble Borough Council,http://statistics.data.gov.uk/id/local-authority/30UE,Central Support Services,Water Charges(Metered),2511,28/07/21 - 28/08/21,13/10/2021,0000472393,"2,550.38",Revenue,WATER PLUS,0
South Ribble Borough Council,http://statistics.data.gov.uk/id/local-authority/30UE,Central Support Services,Water Charges(Metered),2511,28/06/21 - 28/07/21,13/10/2021,0000472394,"2,449.33",Revenue,WATER PLUS,0
South Ribble Borough Council,http://statistics.data.gov.uk/id/local-authority/30UE,Central Support Services,Water Charges(Metered),2511,19/05/21 - 07/09/21,13/10/2021,0000472395,104.04,Revenue,WATER PLUS,0
South Ribble Borough Council,http://statistics.data.gov.uk/id/local-authority/30UE,Central Support Services,Water Charges(Metered),2511,dca fee,13/10/2021,0000472395,170.00,Revenue,WATER PLUS,0
South Ribble Borough Council,http://statistics.data.gov.uk/id/local-authority/30UE,Surplus or Deficit on Trading,Water Charges(Metered),2511,16/4 to 3/8/21,29/10/2021,0000472626,17.61,Revenue,WATER PLUS,0
South Ribble Borough Council,http://statistics.data.gov.uk/id/local-authority/30UE,Surplus or Deficit on Trading,Water Charges(Metered),2511,16/4 to 3/8/21,29/10/2021,0000472626,249.03,Revenue,WATER PLUS,0
South Ribble Borough Council,http://statistics.data.gov.uk/id/local-authority/30UE,Recreation & Sport,Planned Annual Repair & Maintenance,2021,"Hire of 1x anti vandal toilet unit, 1x 500 gallon effluent tank & 1x anti vandal canteen unit, Penwortham Holme as per quotation",20/10/2021,0000472471,420.00,Revenue,Wernick Hire Ltd,0
South Ribble Borough Council,http://statistics.data.gov.uk/id/local-authority/30UE,Open Spaces,External Contractors Charges,4570,"Removal of 1 x beech tree at Middleforth Green, Penwortham",29/10/2021,0000472799,945.00,Revenue,WESTFIELD TREE SERVICES LTD,0
South Ribble Borough Council,http://statistics.data.gov.uk/id/local-authority/30UE,Capital,Cap Contract Payment,C230,"For a Architectural & Principal Designer Services (Stages 4-7) Worden Hall as per tender as per NAME REDACTED Request, Cost - 50,310",13/10/2021,0000472259,"4,984.00",Revenue,Wilson Mason LLP,0
South Ribble Borough Council,http://statistics.data.gov.uk/id/local-authority/30UE,Capital,Cap Contract Payment,C230,Provision of Architect Services and Procurement Support Services to RIBA Stage 3 for the Leyland Town Deal Development,20/10/2021,0000472375,"12,276.56",Revenue,Wilson Mason LLP,0
South Ribble Borough Council,http://statistics.data.gov.uk/id/local-authority/30UE,Capital,Cap Contract Payment,C230,Provision of Architect Services and Procurement Support Services to RIBA Stage 3 for the Leyland Town Deal Development,20/10/2021,0000472414,956.25,Revenue,Wilson Mason LLP,0
South Ribble Borough Council,http://statistics.data.gov.uk/id/local-authority/30UE,Capital,Cap Contract Payment,C230,STRUCTURAL AND DRAINAGE SERVICES TO RIBA STAGE 3 FOR THE LEYLAND TOWN DEAL DEVELOPMENT,20/10/2021,0000472431,"13,477.24",Revenue,Woolgar Hunter Limited,0
South Ribble Borough Council,http://statistics.data.gov.uk/id/local-authority/30UE,Capital,Cap Contract Payment,C230,Enviro Check Report - Leyland Town Deal,20/10/2021,0000472438,314.49,Revenue,Woolgar Hunter Limited,0
South Ribble Borough Council,http://statistics.data.gov.uk/id/local-authority/30UE,Short Term Creditors,Manual Control,0001,,13/10/2021,0000472486,350.72,Revenue,Yewlands Day Nursery Limited,0
